Department family,Entity,Date,Expense Type,Expense area,Supplier,Transaction number,AP Amount (�)
Department of Health,NHS Sheffield CCG,31/12/2018,C&M-PMS Contract Value,PRC DELEGATED CO-COMMISSIONING,ABBEY LANE SURGERY,25104450,"23,569.10 "
Department of Health,NHS Sheffield CCG,31/12/2018,C&M-PMS DES Extended Hours Access,PRC DELEGATED CO-COMMISSIONING,ABBEY LANE SURGERY,25104450,"1,487.23 "
Department of Health,NHS Sheffield CCG,31/12/2018,C&M-PMS Prem Notional Rent,PRC DELEGATED CO-COMMISSIONING,ABBEY LANE SURGERY,25104450,"2,122.92 "
Department of Health,NHS Sheffield CCG,31/12/2018,C&M-PMS Prem Rates,PRC DELEGATED CO-COMMISSIONING,ABBEY LANE SURGERY,25104450,744.00 
Department of Health,NHS Sheffield CCG,31/12/2018,C&M-PMS QOF Aspiration,PRC DELEGATED CO-COMMISSIONING,ABBEY LANE SURGERY,25104450,"2,572.92 "
Department of Health,NHS Sheffield CCG,31/12/2018,Cont Care-Physical Disab (65+),CHC ADULT FULLY FUNDED,ABBEYCARE NURSING,25064619,"51,285.78 "
Department of Health,NHS Sheffield CCG,31/12/2018,C&M-PMS Contract Value,PRC DELEGATED CO-COMMISSIONING,AVENUE MEDICAL CENTRE SHEFFIELD,25104448,"54,616.25 "
Department of Health,NHS Sheffield CCG,31/12/2018,C&M-PMS DES Extended Hours Access,PRC DELEGATED CO-COMMISSIONING,AVENUE MEDICAL CENTRE SHEFFIELD,25104448,"3,386.28 "
Department of Health,NHS Sheffield CCG,31/12/2018,C&M-PMS DES Learn Dsblty Hlth Chk,PRC DELEGATED CO-COMMISSIONING,AVENUE MEDICAL CENTRE SHEFFIELD,25104448,140.00 
Department of Health,NHS Sheffield CCG,31/12/2018,C&M-PMS Out of Hours Opt Outs,PRC DELEGATED CO-COMMISSIONING,AVENUE MEDICAL CENTRE SHEFFIELD,25104448,3.86 
Department of Health,NHS Sheffield CCG,31/12/2018,C&M-PMS PCO Other,PRC DELEGATED CO-COMMISSIONING,AVENUE MEDICAL CENTRE SHEFFIELD,25104448,511.39 
Department of Health,NHS Sheffield CCG,31/12/2018,C&M-PMS Prem Notional Rent,PRC DELEGATED CO-COMMISSIONING,AVENUE MEDICAL CENTRE SHEFFIELD,25104448,"5,546.67 "
Department of Health,NHS Sheffield CCG,31/12/2018,C&M-PMS Prem Rates,PRC DELEGATED CO-COMMISSIONING,AVENUE MEDICAL CENTRE SHEFFIELD,25104448,"1,002.00 "
Department of Health,NHS Sheffield CCG,31/12/2018,C&M-PMS QOF Aspiration,PRC DELEGATED CO-COMMISSIONING,AVENUE MEDICAL CENTRE SHEFFIELD,25104448,"5,705.45 "
Department of Health,NHS Sheffield CCG,31/12/2018,Hcare Srv Rec Fdtn Trust-Contract Baseline,ACUTE COMMISSIONING,BARNSLEY HOSPITAL NHS FOUNDATION TRUST,25003513,"73,344.00 "
Department of Health,NHS Sheffield CCG,31/12/2018,C&M-PMS Contract Value,PRC DELEGATED CO-COMMISSIONING,BARNSLEY ROAD SURGERY,25104452,"21,763.76 "
Department of Health,NHS Sheffield CCG,31/12/2018,C&M-PMS PCO Other,PRC DELEGATED CO-COMMISSIONING,BARNSLEY ROAD SURGERY,25104452,"2,027.00 "
Department of Health,NHS Sheffield CCG,31/12/2018,C&M-PMS Prem Notional Rent,PRC DELEGATED CO-COMMISSIONING,BARNSLEY ROAD SURGERY,25104452,"2,652.17 "
Department of Health,NHS Sheffield CCG,31/12/2018,C&M-PMS Prem Water Rates,PRC DELEGATED CO-COMMISSIONING,BARNSLEY ROAD SURGERY,25104452,513.09 
Department of Health,NHS Sheffield CCG,31/12/2018,C&M-PMS QOF Aspiration,PRC DELEGATED CO-COMMISSIONING,BARNSLEY ROAD SURGERY,25104452,"2,364.70 "
Department of Health,NHS Sheffield CCG,31/12/2018,C&M-GMS DES Extended Hours Access,PRC DELEGATED CO-COMMISSIONING,BASLOW ROAD & SHOREHAM STREET SURGERIES,25321433,"12,012.76 "
Department of Health,NHS Sheffield CCG,31/12/2018,C&M-GMS Global Sum,PRC DELEGATED CO-COMMISSIONING,BASLOW ROAD & SHOREHAM STREET SURGERIES,25321433,"97,207.54 "
Department of Health,NHS Sheffield CCG,31/12/2018,C&M-GMS MPIG Correction Factor,PRC DELEGATED CO-COMMISSIONING,BASLOW ROAD & SHOREHAM STREET SURGERIES,25321433,292.43 
Department of Health,NHS Sheffield CCG,31/12/2018,C&M-GMS PCO Seniority,PRC DELEGATED CO-COMMISSIONING,BASLOW ROAD & SHOREHAM STREET SURGERIES,25321433,"1,978.08 "
Department of Health,NHS Sheffield CCG,31/12/2018,C&M-GMS Prem Notional Rent,PRC DELEGATED CO-COMMISSIONING,BASLOW ROAD & SHOREHAM STREET SURGERIES,25321433,"8,511.25 "
Department of Health,NHS Sheffield CCG,31/12/2018,C&M-GMS Prem Rates,PRC DELEGATED CO-COMMISSIONING,BASLOW ROAD & SHOREHAM STREET SURGERIES,25321433,"2,273.00 "
Department of Health,NHS Sheffield CCG,31/12/2018,C&M-GMS Prem Water Rates,PRC DELEGATED CO-COMMISSIONING,BASLOW ROAD & SHOREHAM STREET SURGERIES,25321433,738.42 
Department of Health,NHS Sheffield CCG,31/12/2018,C&M-GMS QOF Aspiration,PRC DELEGATED CO-COMMISSIONING,BASLOW ROAD & SHOREHAM STREET SURGERIES,25321433,"10,715.96 "
Department of Health,NHS Sheffield CCG,31/12/2018,Cont Care-Physical Disab (65+),CHC ADULT FULLY FUNDED,BC SHEFFIELD LTD,25036858,"36,915.01 "
Department of Health,NHS Sheffield CCG,31/12/2018,C&M-PMS Contract Value,PRC DELEGATED CO-COMMISSIONING,BIRLEY HEALTH CENTRE,25104454,"63,435.34 "
Department of Health,NHS Sheffield CCG,31/12/2018,C&M-PMS DES Extended Hours Access,PRC DELEGATED CO-COMMISSIONING,BIRLEY HEALTH CENTRE,25104454,"4,039.40 "
Department of Health,NHS Sheffield CCG,31/12/2018,C&M-PMS Out of Hours Opt Outs,PRC DELEGATED CO-COMMISSIONING,BIRLEY HEALTH CENTRE,25104454,7.07 
Department of Health,NHS Sheffield CCG,31/12/2018,C&M-PMS PCO Other,PRC DELEGATED CO-COMMISSIONING,BIRLEY HEALTH CENTRE,25104454,595.83 
Department of Health,NHS Sheffield CCG,31/12/2018,C&M-PMS PCO Seniority,PRC DELEGATED CO-COMMISSIONING,BIRLEY HEALTH CENTRE,25104454,"4,032.97 "
Department of Health,NHS Sheffield CCG,31/12/2018,C&M-PMS Prem Notional Rent,PRC DELEGATED CO-COMMISSIONING,BIRLEY HEALTH CENTRE,25104454,"7,600.58 "
Department of Health,NHS Sheffield CCG,31/12/2018,C&M-PMS Prem Rates,PRC DELEGATED CO-COMMISSIONING,BIRLEY HEALTH CENTRE,25104454,"1,650.00 "
Department of Health,NHS Sheffield CCG,31/12/2018,C&M-PMS QOF Aspiration,PRC DELEGATED CO-COMMISSIONING,BIRLEY HEALTH CENTRE,25104454,"7,642.20 "
Department of Health,NHS Sheffield CCG,31/12/2018,Clinical&Medical-Independent Sector,ACUTE COMMISSIONING,BMI HEALTHCARE LTD,25003530,"(29,251.45)"
Department of Health,NHS Sheffield CCG,31/12/2018,Clinical&Medical-Independent Sector,ACUTE COMMISSIONING,BMI HEALTHCARE LTD,25064274,"84,881.31 "
Department of Health,NHS Sheffield CCG,31/12/2018,Clinical&Medical-Independent Sector,ACUTE COMMISSIONING,BMI HEALTHCARE LTD,25331893,"(34,919.51)"
Department of Health,NHS Sheffield CCG,31/12/2018,C&M-GMS Cost of Drugs -Prescribing,LOCAL ENHANCED SERVICES,BROOMHILL SURGERY,25321440,"9,865.06 "
Department of Health,NHS Sheffield CCG,31/12/2018,C&M-GMS DES Extended Hours Access,PRC DELEGATED CO-COMMISSIONING,BROOMHILL SURGERY,25321440,"4,575.20 "
Department of Health,NHS Sheffield CCG,31/12/2018,C&M-GMS Global Sum,PRC DELEGATED CO-COMMISSIONING,BROOMHILL SURGERY,25321440,"63,706.17 "
Department of Health,NHS Sheffield CCG,31/12/2018,C&M-GMS MPIG Correction Factor,PRC DELEGATED CO-COMMISSIONING,BROOMHILL SURGERY,25321440,502.00 
Department of Health,NHS Sheffield CCG,31/12/2018,C&M-GMS PCO Seniority,PRC DELEGATED CO-COMMISSIONING,BROOMHILL SURGERY,25321440,"3,894.17 "
Department of Health,NHS Sheffield CCG,31/12/2018,C&M-GMS Prem Cost Rent,PRC DELEGATED CO-COMMISSIONING,BROOMHILL SURGERY,25321440,"3,380.00 "
Department of Health,NHS Sheffield CCG,31/12/2018,C&M-GMS Prem Notional Rent,PRC DELEGATED CO-COMMISSIONING,BROOMHILL SURGERY,25321440,"2,612.50 "
Department of Health,NHS Sheffield CCG,31/12/2018,C&M-GMS Prem Rates,PRC DELEGATED CO-COMMISSIONING,BROOMHILL SURGERY,25321440,"1,848.00 "
Department of Health,NHS Sheffield CCG,31/12/2018,C&M-GMS Prof Fees Prescribing,PRC DELEGATED CO-COMMISSIONING,BROOMHILL SURGERY,25321440,"2,135.67 "
Department of Health,NHS Sheffield CCG,31/12/2018,C&M-GMS QOF Aspiration,PRC DELEGATED CO-COMMISSIONING,BROOMHILL SURGERY,25321440,"6,274.17 "
Department of Health,NHS Sheffield CCG,31/12/2018,C&M-GMS IT Comm Servs -GP Practices,PRIMARY CARE IT,BT GLOBAL SERVICES,25331783,"24,271.91 "
Department of Health,NHS Sheffield CCG,31/12/2018,Computer Software/License,CORPORATE COSTS & SERVICES,BT GLOBAL SERVICES,25331783,"4,442.76 "
Department of Health,NHS Sheffield CCG,31/12/2018,C&M-GMS Cost of Drugs -Prescribing,LOCAL ENHANCED SERVICES,BUCHANAN ROAD SURGERY,25321436,"8,141.04 "
Department of Health,NHS Sheffield CCG,31/12/2018,C&M-GMS Global Sum,PRC DELEGATED CO-COMMISSIONING,BUCHANAN ROAD SURGERY,25321436,"35,636.28 "
Department of Health,NHS Sheffield CCG,31/12/2018,C&M-GMS MPIG Correction Factor,PRC DELEGATED CO-COMMISSIONING,BUCHANAN ROAD SURGERY,25321436,"1,310.51 "
Department of Health,NHS Sheffield CCG,31/12/2018,C&M-GMS PCO Seniority,PRC DELEGATED CO-COMMISSIONING,BUCHANAN ROAD SURGERY,25321436,561.53 
Department of Health,NHS Sheffield CCG,31/12/2018,C&M-GMS Prem Notional Rent,PRC DELEGATED CO-COMMISSIONING,BUCHANAN ROAD SURGERY,25321436,"2,595.83 "
Department of Health,NHS Sheffield CCG,31/12/2018,C&M-GMS Prem Rates,PRC DELEGATED CO-COMMISSIONING,BUCHANAN ROAD SURGERY,25321436,864.00 
Department of Health,NHS Sheffield CCG,31/12/2018,C&M-GMS Prof Fees Prescribing,PRC DELEGATED CO-COMMISSIONING,BUCHANAN ROAD SURGERY,25321436,"1,993.61 "
Department of Health,NHS Sheffield CCG,31/12/2018,C&M-GMS QOF Aspiration,PRC DELEGATED CO-COMMISSIONING,BUCHANAN ROAD SURGERY,25321436,"4,144.11 "
Department of Health,NHS Sheffield CCG,31/12/2018,C&M-PMS Contract Value,PRC DELEGATED CO-COMMISSIONING,BURNCROSS SURGERY,25104456,"121,727.76 "
Department of Health,NHS Sheffield CCG,31/12/2018,C&M-PMS DES Extended Hours Access,PRC DELEGATED CO-COMMISSIONING,BURNCROSS SURGERY,25104456,"7,340.18 "
Department of Health,NHS Sheffield CCG,31/12/2018,C&M-PMS PCO Seniority,PRC DELEGATED CO-COMMISSIONING,BURNCROSS SURGERY,25104456,"4,097.99 "
Department of Health,NHS Sheffield CCG,31/12/2018,C&M-PMS Prem Notional Rent,PRC DELEGATED CO-COMMISSIONING,BURNCROSS SURGERY,25104456,"14,058.33 "
Department of Health,NHS Sheffield CCG,31/12/2018,C&M-PMS QOF Aspiration,PRC DELEGATED CO-COMMISSIONING,BURNCROSS SURGERY,25104456,"16,082.74 "
Department of Health,NHS Sheffield CCG,31/12/2018,C&M-PMS Contract Value,PRC DELEGATED CO-COMMISSIONING,BURNGREAVE SURGERY,25104458,"56,852.61 "
Department of Health,NHS Sheffield CCG,31/12/2018,C&M-PMS DES Extended Hours Access,PRC DELEGATED CO-COMMISSIONING,BURNGREAVE SURGERY,25104458,"3,195.33 "
Department of Health,NHS Sheffield CCG,31/12/2018,C&M-PMS PCO Seniority,PRC DELEGATED CO-COMMISSIONING,BURNGREAVE SURGERY,25104458,"1,534.18 "
Department of Health,NHS Sheffield CCG,31/12/2018,C&M-PMS Prem Notional Rent,PRC DELEGATED CO-COMMISSIONING,BURNGREAVE SURGERY,25104458,"6,622.92 "
Department of Health,NHS Sheffield CCG,31/12/2018,C&M-PMS Prem Rates,PRC DELEGATED CO-COMMISSIONING,BURNGREAVE SURGERY,25104458,"1,929.00 "
Department of Health,NHS Sheffield CCG,31/12/2018,C&M-PMS Prem Water Rates,PRC DELEGATED CO-COMMISSIONING,BURNGREAVE SURGERY,25104458,371.64 
Department of Health,NHS Sheffield CCG,31/12/2018,C&M-PMS QOF Aspiration,PRC DELEGATED CO-COMMISSIONING,BURNGREAVE SURGERY,25104458,"4,881.27 "
Department of Health,NHS Sheffield CCG,31/12/2018,C&M-GMS Cost of Drugs -Prescribing,LOCAL ENHANCED SERVICES,CARTERKNOWLE & DORE MEDICAL PRACTICE,25321444,"19,657.44 "
Department of Health,NHS Sheffield CCG,31/12/2018,C&M-GMS DES Extended Hours Access,PRC DELEGATED CO-COMMISSIONING,CARTERKNOWLE & DORE MEDICAL PRACTICE,25321444,"5,880.03 "
Department of Health,NHS Sheffield CCG,31/12/2018,C&M-GMS Global Sum,PRC DELEGATED CO-COMMISSIONING,CARTERKNOWLE & DORE MEDICAL PRACTICE,25321444,"84,526.30 "
Department of Health,NHS Sheffield CCG,31/12/2018,C&M-GMS MPIG Correction Factor,PRC DELEGATED CO-COMMISSIONING,CARTERKNOWLE & DORE MEDICAL PRACTICE,25321444,"1,494.59 "
Department of Health,NHS Sheffield CCG,31/12/2018,C&M-GMS PCO Other,PRC DELEGATED CO-COMMISSIONING,CARTERKNOWLE & DORE MEDICAL PRACTICE,25321444,838.11 
Department of Health,NHS Sheffield CCG,31/12/2018,C&M-GMS PCO Seniority,PRC DELEGATED CO-COMMISSIONING,CARTERKNOWLE & DORE MEDICAL PRACTICE,25321444,"2,784.75 "
Department of Health,NHS Sheffield CCG,31/12/2018,C&M-GMS Prem Notional Rent,PRC DELEGATED CO-COMMISSIONING,CARTERKNOWLE & DORE MEDICAL PRACTICE,25321444,"7,596.50 "
Department of Health,NHS Sheffield CCG,31/12/2018,C&M-GMS Prem Rates,PRC DELEGATED CO-COMMISSIONING,CARTERKNOWLE & DORE MEDICAL PRACTICE,25321444,"1,880.00 "
Department of Health,NHS Sheffield CCG,31/12/2018,C&M-GMS Prof Fees Prescribing,PRC DELEGATED CO-COMMISSIONING,CARTERKNOWLE & DORE MEDICAL PRACTICE,25321444,"4,137.44 "
Department of Health,NHS Sheffield CCG,31/12/2018,C&M-GMS QOF Aspiration,PRC DELEGATED CO-COMMISSIONING,CARTERKNOWLE & DORE MEDICAL PRACTICE,25321444,"10,163.70 "
Department of Health,NHS Sheffield CCG,31/12/2018,C&M-GMS Cost of Drugs -Prescribing,LOCAL ENHANCED SERVICES,CHARNOCK HEALTH PRIMARY CARE CENTRE,25321442,"10,579.00 "
Department of Health,NHS Sheffield CCG,31/12/2018,C&M-GMS DES Extended Hours Access,PRC DELEGATED CO-COMMISSIONING,CHARNOCK HEALTH PRIMARY CARE CENTRE,25321442,"2,555.98 "
Department of Health,NHS Sheffield CCG,31/12/2018,C&M-GMS Global Sum,PRC DELEGATED CO-COMMISSIONING,CHARNOCK HEALTH PRIMARY CARE CENTRE,25321442,"41,947.71 "
Department of Health,NHS Sheffield CCG,31/12/2018,C&M-GMS MPIG Correction Factor,PRC DELEGATED CO-COMMISSIONING,CHARNOCK HEALTH PRIMARY CARE CENTRE,25321442,413.25 
Department of Health,NHS Sheffield CCG,31/12/2018,C&M-GMS PCO Other,PRC DELEGATED CO-COMMISSIONING,CHARNOCK HEALTH PRIMARY CARE CENTRE,25321442,395.85 
Department of Health,NHS Sheffield CCG,31/12/2018,C&M-GMS PCO Seniority,PRC DELEGATED CO-COMMISSIONING,CHARNOCK HEALTH PRIMARY CARE CENTRE,25321442,"1,666.91 "
Department of Health,NHS Sheffield CCG,31/12/2018,C&M-GMS Prem Notional Rent,PRC DELEGATED CO-COMMISSIONING,CHARNOCK HEALTH PRIMARY CARE CENTRE,25321442,335.00 
Department of Health,NHS Sheffield CCG,31/12/2018,C&M-GMS Prem Rates,PRC DELEGATED CO-COMMISSIONING,CHARNOCK HEALTH PRIMARY CARE CENTRE,25321442,"1,247.00 "
Department of Health,NHS Sheffield CCG,31/12/2018,C&M-GMS Prof Fees Prescribing,PRC DELEGATED CO-COMMISSIONING,CHARNOCK HEALTH PRIMARY CARE CENTRE,25321442,"2,608.55 "
Department of Health,NHS Sheffield CCG,31/12/2018,C&M-GMS QOF Aspiration,PRC DELEGATED CO-COMMISSIONING,CHARNOCK HEALTH PRIMARY CARE CENTRE,25321442,"4,710.20 "
Department of Health,NHS Sheffield CCG,31/12/2018,Hcare Srv Rec Fdtn Trust-Contract Baseline,ACUTE COMMISSIONING,CHESTERFIELD ROYAL HOSPITAL NHS FOUNDATION TRUST,25155487,"(32,106.00)"
Department of Health,NHS Sheffield CCG,31/12/2018,Hcare Srv Rec Fdtn Trust-Contract Baseline,ACUTE COMMISSIONING,CHESTERFIELD ROYAL HOSPITAL NHS FOUNDATION TRUST,25155628,"266,428.00 "
Department of Health,NHS Sheffield CCG,31/12/2018,Clinical&Medical-Independent Sector,ACUTE COMMISSIONING,CLAREMONT HOSPITAL,25064831,"65,047.00 "
Department of Health,NHS Sheffield CCG,31/12/2018,Voids and Subsidies,PRC DELEGATED CO-COMMISSIONING,COMMUNITY HEALTH PARTNERSHIPS LTD,25128523,"20,929.47 "
Department of Health,NHS Sheffield CCG,31/12/2018,Voids and Subsidies,RECHARGES NHS PROPERTY SERVICES LTD,COMMUNITY HEALTH PARTNERSHIPS LTD,25128523,"113,924.66 "
Department of Health,NHS Sheffield CCG,31/12/2018,Cont Care-Funded Nursing Care Allow,FUNDED NURSING CARE,COUNTRY COURT CARE LTD,25064730,"27,113.03 "
Department of Health,NHS Sheffield CCG,31/12/2018,C&M-GMS Cost of Drugs -Prescribing,LOCAL ENHANCED SERVICES,CROOKES PRACTICE,25321448,"7,669.86 "
Department of Health,NHS Sheffield CCG,31/12/2018,C&M-GMS DES Extended Hours Access,PRC DELEGATED CO-COMMISSIONING,CROOKES PRACTICE,25321448,"3,784.80 "
Department of Health,NHS Sheffield CCG,31/12/2018,C&M-GMS Global Sum,PRC DELEGATED CO-COMMISSIONING,CROOKES PRACTICE,25321448,"50,361.31 "
Department of Health,NHS Sheffield CCG,31/12/2018,C&M-GMS MPIG Correction Factor,PRC DELEGATED CO-COMMISSIONING,CROOKES PRACTICE,25321448,"1,545.92 "
Department of Health,NHS Sheffield CCG,31/12/2018,C&M-GMS PCO Other,PRC DELEGATED CO-COMMISSIONING,CROOKES PRACTICE,25321448,559.22 
Department of Health,NHS Sheffield CCG,31/12/2018,C&M-GMS PCO Seniority,PRC DELEGATED CO-COMMISSIONING,CROOKES PRACTICE,25321448,992.79 
Department of Health,NHS Sheffield CCG,31/12/2018,C&M-GMS Prem Notional Rent,PRC DELEGATED CO-COMMISSIONING,CROOKES PRACTICE,25321448,"3,874.67 "
Department of Health,NHS Sheffield CCG,31/12/2018,C&M-GMS Prem Rates,PRC DELEGATED CO-COMMISSIONING,CROOKES PRACTICE,25321448,"1,476.00 "
Department of Health,NHS Sheffield CCG,31/12/2018,C&M-GMS Prem Water Rates,PRC DELEGATED CO-COMMISSIONING,CROOKES PRACTICE,25321448,186.53 
Department of Health,NHS Sheffield CCG,31/12/2018,C&M-GMS Prof Fees Prescribing,PRC DELEGATED CO-COMMISSIONING,CROOKES PRACTICE,25321448,"1,829.68 "
Department of Health,NHS Sheffield CCG,31/12/2018,C&M-GMS QOF Aspiration,PRC DELEGATED CO-COMMISSIONING,CROOKES PRACTICE,25321448,"5,056.52 "
Department of Health,NHS Sheffield CCG,31/12/2018,C&M-PMS Contract Value,PRC DELEGATED CO-COMMISSIONING,DEEPCAR MEDICAL CENTRE,25104462,"41,127.71 "
Department of Health,NHS Sheffield CCG,31/12/2018,C&M-PMS DES Extended Hours Access,PRC DELEGATED CO-COMMISSIONING,DEEPCAR MEDICAL CENTRE,25104462,"2,470.95 "
Department of Health,NHS Sheffield CCG,31/12/2018,C&M-PMS PCO Locum Adop/Pat/Mat,PRC DELEGATED CO-COMMISSIONING,DEEPCAR MEDICAL CENTRE,25104462,"2,449.55 "
Department of Health,NHS Sheffield CCG,31/12/2018,C&M-PMS PCO Seniority,PRC DELEGATED CO-COMMISSIONING,DEEPCAR MEDICAL CENTRE,25104462,"1,309.22 "
Department of Health,NHS Sheffield CCG,31/12/2018,C&M-PMS Prem Healthcentre Rent,PRC DELEGATED CO-COMMISSIONING,DEEPCAR MEDICAL CENTRE,25104462,"29,067.58 "
Department of Health,NHS Sheffield CCG,31/12/2018,C&M-PMS QOF Aspiration,PRC DELEGATED CO-COMMISSIONING,DEEPCAR MEDICAL CENTRE,25104462,"4,182.29 "
Department of Health,NHS Sheffield CCG,31/12/2018,External Consultancy Fees,BEREAVEMENT SERVICE,DELOITTE MCS LTD,25155673,"108,000.01 "
Department of Health,NHS Sheffield CCG,31/12/2018,Hotel And Accomodation Costs,BEREAVEMENT SERVICE,DELOITTE MCS LTD,25155673,"2,390.60 "
Department of Health,NHS Sheffield CCG,31/12/2018,Miscellaneous Expenditure (L9),BEREAVEMENT SERVICE,DELOITTE MCS LTD,25155673,123.73 
Department of Health,NHS Sheffield CCG,31/12/2018,Rail Travel,BEREAVEMENT SERVICE,DELOITTE MCS LTD,25155673,"10,522.02 "
Department of Health,NHS Sheffield CCG,31/12/2018,Stationery,BEREAVEMENT SERVICE,DELOITTE MCS LTD,25155673,28.04 
Department of Health,NHS Sheffield CCG,31/12/2018,Subsistence Costs,BEREAVEMENT SERVICE,DELOITTE MCS LTD,25155673,383.75 
Department of Health,NHS Sheffield CCG,31/12/2018,Taxi Travel,BEREAVEMENT SERVICE,DELOITTE MCS LTD,25155673,"1,816.03 "
Department of Health,NHS Sheffield CCG,31/12/2018,Telecoms-Phone Rental and Calls,BEREAVEMENT SERVICE,DELOITTE MCS LTD,25155673,37.98 
Department of Health,NHS Sheffield CCG,31/12/2018,C&M-GMS Cost of Drugs -Prescribing,LOCAL ENHANCED SERVICES,DEVONSHIRE GREEN MEDICAL CENTRE,25321451,"5,853.97 "
Department of Health,NHS Sheffield CCG,31/12/2018,C&M-GMS Global Sum,PRC DELEGATED CO-COMMISSIONING,DEVONSHIRE GREEN MEDICAL CENTRE,25321451,"45,680.76 "
Department of Health,NHS Sheffield CCG,31/12/2018,C&M-GMS MPIG Correction Factor,PRC DELEGATED CO-COMMISSIONING,DEVONSHIRE GREEN MEDICAL CENTRE,25321451,"3,231.20 "
Department of Health,NHS Sheffield CCG,31/12/2018,C&M-GMS PCO Seniority,PRC DELEGATED CO-COMMISSIONING,DEVONSHIRE GREEN MEDICAL CENTRE,25321451,"2,423.70 "
Department of Health,NHS Sheffield CCG,31/12/2018,C&M-GMS Prem Notional Rent,PRC DELEGATED CO-COMMISSIONING,DEVONSHIRE GREEN MEDICAL CENTRE,25321451,"5,987.50 "
Department of Health,NHS Sheffield CCG,31/12/2018,C&M-GMS Prem Rates,PRC DELEGATED CO-COMMISSIONING,DEVONSHIRE GREEN MEDICAL CENTRE,25321451,866.00 
Department of Health,NHS Sheffield CCG,31/12/2018,C&M-GMS Prof Fees Prescribing,PRC DELEGATED CO-COMMISSIONING,DEVONSHIRE GREEN MEDICAL CENTRE,25321451,"1,465.06 "
Department of Health,NHS Sheffield CCG,31/12/2018,C&M-GMS QOF Aspiration,PRC DELEGATED CO-COMMISSIONING,DEVONSHIRE GREEN MEDICAL CENTRE,25321451,"4,641.81 "
Department of Health,NHS Sheffield CCG,31/12/2018,Hcare Srv Rec Fdtn Trust-Contract Baseline,ACUTE COMMISSIONING,DONCASTER AND BASSETLAW HOSPITALS NHS FOUNDATION TRUST,25155553,"35,160.00 "
Department of Health,NHS Sheffield CCG,31/12/2018,C&M-PMS Contract Value,PRC DELEGATED CO-COMMISSIONING,DOVERCOURT SURGERY,25104464,"72,767.61 "
Department of Health,NHS Sheffield CCG,31/12/2018,C&M-PMS DES Extended Hours Access,PRC DELEGATED CO-COMMISSIONING,DOVERCOURT SURGERY,25104464,"3,960.08 "
Department of Health,NHS Sheffield CCG,31/12/2018,C&M-PMS Out of Hours Opt Outs,PRC DELEGATED CO-COMMISSIONING,DOVERCOURT SURGERY,25104464,7.91 
Department of Health,NHS Sheffield CCG,31/12/2018,C&M-PMS PCO Other,PRC DELEGATED CO-COMMISSIONING,DOVERCOURT SURGERY,25104464,584.56 
Department of Health,NHS Sheffield CCG,31/12/2018,C&M-PMS PCO Seniority,PRC DELEGATED CO-COMMISSIONING,DOVERCOURT SURGERY,25104464,"1,534.18 "
Department of Health,NHS Sheffield CCG,31/12/2018,C&M-PMS Prem Actual Rent,PRC DELEGATED CO-COMMISSIONING,DOVERCOURT SURGERY,25104464,"12,400.00 "
Department of Health,NHS Sheffield CCG,31/12/2018,C&M-PMS Prem Notional Rent,PRC DELEGATED CO-COMMISSIONING,DOVERCOURT SURGERY,25104464,"1,708.34 "
Department of Health,NHS Sheffield CCG,31/12/2018,C&M-PMS QOF Aspiration,PRC DELEGATED CO-COMMISSIONING,DOVERCOURT SURGERY,25104464,"7,443.07 "
Department of Health,NHS Sheffield CCG,31/12/2018,C&M-PMS Contract Value,PRC DELEGATED CO-COMMISSIONING,DR MEHROTRA & PARTNER,25104466,"27,872.06 "
Department of Health,NHS Sheffield CCG,31/12/2018,C&M-PMS DES Extended Hours Access,PRC DELEGATED CO-COMMISSIONING,DR MEHROTRA & PARTNER,25104466,"1,622.13 "
Department of Health,NHS Sheffield CCG,31/12/2018,C&M-PMS PCO Other,PRC DELEGATED CO-COMMISSIONING,DR MEHROTRA & PARTNER,25104466,621.00 
Department of Health,NHS Sheffield CCG,31/12/2018,C&M-PMS PCO Seniority,PRC DELEGATED CO-COMMISSIONING,DR MEHROTRA & PARTNER,25104466,567.64 
Department of Health,NHS Sheffield CCG,31/12/2018,C&M-PMS Prem Actual Rent,PRC DELEGATED CO-COMMISSIONING,DR MEHROTRA & PARTNER,25104466,"2,650.00 "
Department of Health,NHS Sheffield CCG,31/12/2018,C&M-PMS Prem Notional Rent,PRC DELEGATED CO-COMMISSIONING,DR MEHROTRA & PARTNER,25104466,"5,157.29 "
Department of Health,NHS Sheffield CCG,31/12/2018,C&M-PMS Prem Rates,PRC DELEGATED CO-COMMISSIONING,DR MEHROTRA & PARTNER,25104466,"1,463.00 "
Department of Health,NHS Sheffield CCG,31/12/2018,C&M-PMS QOF Aspiration,PRC DELEGATED CO-COMMISSIONING,DR MEHROTRA & PARTNER,25104466,"3,078.44 "
Department of Health,NHS Sheffield CCG,31/12/2018,C&M-PMS Contract Value,PRC DELEGATED CO-COMMISSIONING,DR MILNER & PARTNERS,25104468,"75,515.81 "
Department of Health,NHS Sheffield CCG,31/12/2018,C&M-PMS DES Extended Hours Access,PRC DELEGATED CO-COMMISSIONING,DR MILNER & PARTNERS,25104468,"5,036.90 "
Department of Health,NHS Sheffield CCG,31/12/2018,C&M-PMS DES Learn Dsblty Hlth Chk,PRC DELEGATED CO-COMMISSIONING,DR MILNER & PARTNERS,25104468,980.00 
Department of Health,NHS Sheffield CCG,31/12/2018,C&M-PMS Out of Hours Opt Outs,PRC DELEGATED CO-COMMISSIONING,DR MILNER & PARTNERS,25104468,9.66 
Department of Health,NHS Sheffield CCG,31/12/2018,C&M-PMS PCO Seniority,PRC DELEGATED CO-COMMISSIONING,DR MILNER & PARTNERS,25104468,"1,656.58 "
Department of Health,NHS Sheffield CCG,31/12/2018,C&M-PMS Prem Actual Rent,PRC DELEGATED CO-COMMISSIONING,DR MILNER & PARTNERS,25104468,"11,382.00 "
Department of Health,NHS Sheffield CCG,31/12/2018,C&M-PMS Prem Notional Rent,PRC DELEGATED CO-COMMISSIONING,DR MILNER & PARTNERS,25104468,"4,462.42 "
Department of Health,NHS Sheffield CCG,31/12/2018,C&M-PMS Prem Rates,PRC DELEGATED CO-COMMISSIONING,DR MILNER & PARTNERS,25104468,"2,464.00 "
Department of Health,NHS Sheffield CCG,31/12/2018,C&M-PMS QOF Aspiration,PRC DELEGATED CO-COMMISSIONING,DR MILNER & PARTNERS,25104468,"6,553.23 "
Department of Health,NHS Sheffield CCG,31/12/2018,C&M-GMS Cost of Drugs -Prescribing,LOCAL ENHANCED SERVICES,DUKE MEDICAL CENTRE,25321459,"5,298.02 "
Department of Health,NHS Sheffield CCG,31/12/2018,C&M-GMS DES Extended Hours Access,PRC DELEGATED CO-COMMISSIONING,DUKE MEDICAL CENTRE,25321459,"3,310.75 "
Department of Health,NHS Sheffield CCG,31/12/2018,C&M-GMS DES Learn Dsblty Hlth Chk,PRC DELEGATED CO-COMMISSIONING,DUKE MEDICAL CENTRE,25321459,980.00 
Department of Health,NHS Sheffield CCG,31/12/2018,C&M-GMS Global Sum,PRC DELEGATED CO-COMMISSIONING,DUKE MEDICAL CENTRE,25321459,"58,018.51 "
Department of Health,NHS Sheffield CCG,31/12/2018,C&M-GMS MPIG Correction Factor,PRC DELEGATED CO-COMMISSIONING,DUKE MEDICAL CENTRE,25321459,612.51 
Department of Health,NHS Sheffield CCG,31/12/2018,C&M-GMS PCO Other,PRC DELEGATED CO-COMMISSIONING,DUKE MEDICAL CENTRE,25321459,495.17 
Department of Health,NHS Sheffield CCG,31/12/2018,C&M-GMS PCO Seniority,PRC DELEGATED CO-COMMISSIONING,DUKE MEDICAL CENTRE,25321459,"1,433.17 "
Department of Health,NHS Sheffield CCG,31/12/2018,C&M-GMS Prem Notional Rent,PRC DELEGATED CO-COMMISSIONING,DUKE MEDICAL CENTRE,25321459,"5,721.67 "
Department of Health,NHS Sheffield CCG,31/12/2018,C&M-GMS Prem Rates,PRC DELEGATED CO-COMMISSIONING,DUKE MEDICAL CENTRE,25321459,"1,405.87 "
Department of Health,NHS Sheffield CCG,31/12/2018,C&M-GMS Prem Water Rates,PRC DELEGATED CO-COMMISSIONING,DUKE MEDICAL CENTRE,25321459,280.70 
Department of Health,NHS Sheffield CCG,31/12/2018,C&M-GMS Prof Fees Prescribing,PRC DELEGATED CO-COMMISSIONING,DUKE MEDICAL CENTRE,25321459,"1,588.26 "
Department of Health,NHS Sheffield CCG,31/12/2018,C&M-GMS QOF Aspiration,PRC DELEGATED CO-COMMISSIONING,DUKE MEDICAL CENTRE,25321459,"4,948.64 "
Department of Health,NHS Sheffield CCG,31/12/2018,C&M-PMS Contract Value,PRC DELEGATED CO-COMMISSIONING,DUNNINC ROAD SURGERY,25104470,"24,109.99 "
Department of Health,NHS Sheffield CCG,31/12/2018,C&M-PMS DES Extended Hours Access,PRC DELEGATED CO-COMMISSIONING,DUNNINC ROAD SURGERY,25104470,"1,417.40 "
Department of Health,NHS Sheffield CCG,31/12/2018,C&M-PMS PCO Seniority,PRC DELEGATED CO-COMMISSIONING,DUNNINC ROAD SURGERY,25104470,"1,761.29 "
Department of Health,NHS Sheffield CCG,31/12/2018,C&M-PMS Prem Notional Rent,PRC DELEGATED CO-COMMISSIONING,DUNNINC ROAD SURGERY,25104470,"1,664.58 "
Department of Health,NHS Sheffield CCG,31/12/2018,C&M-PMS QOF Aspiration,PRC DELEGATED CO-COMMISSIONING,DUNNINC ROAD SURGERY,25104470,"2,554.49 "
Department of Health,NHS Sheffield CCG,31/12/2018,C&M-PMS Contract Value,PRC DELEGATED CO-COMMISSIONING,DYKES HALL MEDICAL CENTRE,25104472,"72,713.26 "
Department of Health,NHS Sheffield CCG,31/12/2018,C&M-PMS DES Extended Hours Access,PRC DELEGATED CO-COMMISSIONING,DYKES HALL MEDICAL CENTRE,25104472,"4,625.55 "
Department of Health,NHS Sheffield CCG,31/12/2018,C&M-PMS Out of Hours Opt Outs,PRC DELEGATED CO-COMMISSIONING,DYKES HALL MEDICAL CENTRE,25104472,12.02 
Department of Health,NHS Sheffield CCG,31/12/2018,C&M-PMS PCO Seniority,PRC DELEGATED CO-COMMISSIONING,DYKES HALL MEDICAL CENTRE,25104472,"2,043.97 "
Department of Health,NHS Sheffield CCG,31/12/2018,C&M-PMS Prem Notional Rent,PRC DELEGATED CO-COMMISSIONING,DYKES HALL MEDICAL CENTRE,25104472,"5,377.08 "
Department of Health,NHS Sheffield CCG,31/12/2018,C&M-PMS Prem Rates,PRC DELEGATED CO-COMMISSIONING,DYKES HALL MEDICAL CENTRE,25104472,"1,039.00 "
Department of Health,NHS Sheffield CCG,31/12/2018,C&M-PMS QOF Aspiration,PRC DELEGATED CO-COMMISSIONING,DYKES HALL MEDICAL CENTRE,25104472,"8,079.17 "
Department of Health,NHS Sheffield CCG,31/12/2018,C&M-PMS Contract Value,PRC DELEGATED CO-COMMISSIONING,EAST BANK MEDICAL CENTRE,25104474,"47,201.34 "
Department of Health,NHS Sheffield CCG,31/12/2018,C&M-PMS DES Extended Hours Access,PRC DELEGATED CO-COMMISSIONING,EAST BANK MEDICAL CENTRE,25104474,"2,664.75 "
Department of Health,NHS Sheffield CCG,31/12/2018,C&M-PMS PCO Seniority,PRC DELEGATED CO-COMMISSIONING,EAST BANK MEDICAL CENTRE,25104474,"1,132.19 "
Department of Health,NHS Sheffield CCG,31/12/2018,C&M-PMS Prem Notional Rent,PRC DELEGATED CO-COMMISSIONING,EAST BANK MEDICAL CENTRE,25104474,"10,583.34 "
Department of Health,NHS Sheffield CCG,31/12/2018,C&M-PMS Prem Rates,PRC DELEGATED CO-COMMISSIONING,EAST BANK MEDICAL CENTRE,25104474,"2,729.00 "
Department of Health,NHS Sheffield CCG,31/12/2018,C&M-PMS QOF Aspiration,PRC DELEGATED CO-COMMISSIONING,EAST BANK MEDICAL CENTRE,25104474,"4,881.64 "
Department of Health,NHS Sheffield CCG,31/12/2018,C&M-GMS Cost of Drugs -Prescribing,LOCAL ENHANCED SERVICES,ECCLESFIELD GROUP PRACTICE,25321455,"13,485.86 "
Department of Health,NHS Sheffield CCG,31/12/2018,C&M-GMS DES Extended Hours Access,PRC DELEGATED CO-COMMISSIONING,ECCLESFIELD GROUP PRACTICE,25321455,"3,883.60 "
Department of Health,NHS Sheffield CCG,31/12/2018,C&M-GMS Global Sum,PRC DELEGATED CO-COMMISSIONING,ECCLESFIELD GROUP PRACTICE,25321455,"67,402.63 "
Department of Health,NHS Sheffield CCG,31/12/2018,C&M-GMS PCO Other,PRC DELEGATED CO-COMMISSIONING,ECCLESFIELD GROUP PRACTICE,25321455,572.78 
Department of Health,NHS Sheffield CCG,31/12/2018,C&M-GMS PCO Seniority,PRC DELEGATED CO-COMMISSIONING,ECCLESFIELD GROUP PRACTICE,25321455,"1,825.74 "
Department of Health,NHS Sheffield CCG,31/12/2018,C&M-GMS Prem Notional Rent,PRC DELEGATED CO-COMMISSIONING,ECCLESFIELD GROUP PRACTICE,25321455,"6,805.42 "
Department of Health,NHS Sheffield CCG,31/12/2018,C&M-GMS Prem Rates,PRC DELEGATED CO-COMMISSIONING,ECCLESFIELD GROUP PRACTICE,25321455,"1,278.00 "
Department of Health,NHS Sheffield CCG,31/12/2018,C&M-GMS Prof Fees Prescribing,PRC DELEGATED CO-COMMISSIONING,ECCLESFIELD GROUP PRACTICE,25321455,"3,050.59 "
Department of Health,NHS Sheffield CCG,31/12/2018,C&M-GMS QOF Aspiration,PRC DELEGATED CO-COMMISSIONING,ECCLESFIELD GROUP PRACTICE,25321455,"8,811.44 "
Department of Health,NHS Sheffield CCG,31/12/2018,C&M-GMS Cost of Drugs -Prescribing,LOCAL ENHANCED SERVICES,ELM LANE SURGERY,25321457,"3,927.31 "
Department of Health,NHS Sheffield CCG,31/12/2018,C&M-GMS Global Sum,PRC DELEGATED CO-COMMISSIONING,ELM LANE SURGERY,25321457,"39,579.09 "
Department of Health,NHS Sheffield CCG,31/12/2018,C&M-GMS MPIG Correction Factor,PRC DELEGATED CO-COMMISSIONING,ELM LANE SURGERY,25321457,838.53 
Department of Health,NHS Sheffield CCG,31/12/2018,C&M-GMS PCO Seniority,PRC DELEGATED CO-COMMISSIONING,ELM LANE SURGERY,25321457,"1,200.85 "
Department of Health,NHS Sheffield CCG,31/12/2018,C&M-GMS Prem Notional Rent,PRC DELEGATED CO-COMMISSIONING,ELM LANE SURGERY,25321457,"5,305.50 "
Department of Health,NHS Sheffield CCG,31/12/2018,C&M-GMS Prem Rates,PRC DELEGATED CO-COMMISSIONING,ELM LANE SURGERY,25321457,"1,340.00 "
Department of Health,NHS Sheffield CCG,31/12/2018,C&M-GMS Prof Fees Prescribing,PRC DELEGATED CO-COMMISSIONING,ELM LANE SURGERY,25321457,"1,030.57 "
Department of Health,NHS Sheffield CCG,31/12/2018,C&M-GMS QOF Aspiration,PRC DELEGATED CO-COMMISSIONING,ELM LANE SURGERY,25321457,"4,467.14 "
Department of Health,NHS Sheffield CCG,31/12/2018,Cont Care-Physical Disab (<65),CHC ADULT FULLY FUNDED,FAIRWINDS HEALTH CARE LTD,25036887,"39,203.66 "
Department of Health,NHS Sheffield CCG,31/12/2018,C&M-PMS Contract Value,PRC DELEGATED CO-COMMISSIONING,FALKLAND HOUSE,25104477,"25,925.02 "
Department of Health,NHS Sheffield CCG,31/12/2018,C&M-PMS DES Extended Hours Access,PRC DELEGATED CO-COMMISSIONING,FALKLAND HOUSE,25104477,"1,885.75 "
Department of Health,NHS Sheffield CCG,31/12/2018,C&M-PMS Out of Hours Opt Outs,PRC DELEGATED CO-COMMISSIONING,FALKLAND HOUSE,25104477,7.20 
Department of Health,NHS Sheffield CCG,31/12/2018,C&M-PMS PCO Other,PRC DELEGATED CO-COMMISSIONING,FALKLAND HOUSE,25104477,307.67 
Department of Health,NHS Sheffield CCG,31/12/2018,C&M-PMS PCO Seniority,PRC DELEGATED CO-COMMISSIONING,FALKLAND HOUSE,25104477,935.88 
Department of Health,NHS Sheffield CCG,31/12/2018,C&M-PMS Prem Notional Rent,PRC DELEGATED CO-COMMISSIONING,FALKLAND HOUSE,25104477,"1,866.67 "
Department of Health,NHS Sheffield CCG,31/12/2018,C&M-PMS Prem Rates,PRC DELEGATED CO-COMMISSIONING,FALKLAND HOUSE,25104477,756.00 
Department of Health,NHS Sheffield CCG,31/12/2018,C&M-PMS QOF Aspiration,PRC DELEGATED CO-COMMISSIONING,FALKLAND HOUSE,25104477,"2,902.49 "
Department of Health,NHS Sheffield CCG,31/12/2018,C&M-GMS Cost of Drugs -Prescribing,LOCAL ENHANCED SERVICES,FAR LANE MEDICAL CENTRE,25321466,"4,524.20 "
Department of Health,NHS Sheffield CCG,31/12/2018,C&M-GMS Global Sum,PRC DELEGATED CO-COMMISSIONING,FAR LANE MEDICAL CENTRE,25321466,"55,112.66 "
Department of Health,NHS Sheffield CCG,31/12/2018,C&M-GMS PCO Other,PRC DELEGATED CO-COMMISSIONING,FAR LANE MEDICAL CENTRE,25321466,518.33 
Department of Health,NHS Sheffield CCG,31/12/2018,C&M-GMS PCO Seniority,PRC DELEGATED CO-COMMISSIONING,FAR LANE MEDICAL CENTRE,25321466,"4,174.01 "
Department of Health,NHS Sheffield CCG,31/12/2018,C&M-GMS Prem Notional Rent,PRC DELEGATED CO-COMMISSIONING,FAR LANE MEDICAL CENTRE,25321466,"3,462.50 "
Department of Health,NHS Sheffield CCG,31/12/2018,C&M-GMS Prem Rates,PRC DELEGATED CO-COMMISSIONING,FAR LANE MEDICAL CENTRE,25321466,"1,114.00 "
Department of Health,NHS Sheffield CCG,31/12/2018,C&M-GMS Prof Fees Prescribing,PRC DELEGATED CO-COMMISSIONING,FAR LANE MEDICAL CENTRE,25321466,"1,233.60 "
Department of Health,NHS Sheffield CCG,31/12/2018,C&M-GMS QOF Aspiration,PRC DELEGATED CO-COMMISSIONING,FAR LANE MEDICAL CENTRE,25321466,"5,824.23 "
Department of Health,NHS Sheffield CCG,31/12/2018,C&M-PMS Contract Value,PRC DELEGATED CO-COMMISSIONING,FIRTH PARK SURGERY,25104475,"74,421.36 "
Department of Health,NHS Sheffield CCG,31/12/2018,C&M-PMS DES Extended Hours Access,PRC DELEGATED CO-COMMISSIONING,FIRTH PARK SURGERY,25104475,"4,694.43 "
Department of Health,NHS Sheffield CCG,31/12/2018,C&M-PMS PCO Seniority,PRC DELEGATED CO-COMMISSIONING,FIRTH PARK SURGERY,25104475,"2,499.16 "
Department of Health,NHS Sheffield CCG,31/12/2018,C&M-PMS Prem Notional Rent,PRC DELEGATED CO-COMMISSIONING,FIRTH PARK SURGERY,25104475,"4,500.00 "
Department of Health,NHS Sheffield CCG,31/12/2018,C&M-PMS Prem Rates,PRC DELEGATED CO-COMMISSIONING,FIRTH PARK SURGERY,25104475,"1,330.00 "
Department of Health,NHS Sheffield CCG,31/12/2018,C&M-PMS Prem Water Rates,PRC DELEGATED CO-COMMISSIONING,FIRTH PARK SURGERY,25104475,223.80 
Department of Health,NHS Sheffield CCG,31/12/2018,C&M-PMS QOF Aspiration,PRC DELEGATED CO-COMMISSIONING,FIRTH PARK SURGERY,25104475,"7,359.15 "
Department of Health,NHS Sheffield CCG,31/12/2018,C&M-GMS Cost of Drugs -Prescribing,LOCAL ENHANCED SERVICES,FLOWERS HEALTH CENTRE,25321535,"4,014.22 "
Department of Health,NHS Sheffield CCG,31/12/2018,C&M-GMS Global Sum,PRC DELEGATED CO-COMMISSIONING,FLOWERS HEALTH CENTRE,25321535,"36,423.08 "
Department of Health,NHS Sheffield CCG,31/12/2018,C&M-GMS MPIG Correction Factor,PRC DELEGATED CO-COMMISSIONING,FLOWERS HEALTH CENTRE,25321535,"1,476.31 "
Department of Health,NHS Sheffield CCG,31/12/2018,C&M-GMS Prem Healthcentre Rent,PRC DELEGATED CO-COMMISSIONING,FLOWERS HEALTH CENTRE,25321535,"33,513.30 "
Department of Health,NHS Sheffield CCG,31/12/2018,C&M-GMS Prof Fees Prescribing,PRC DELEGATED CO-COMMISSIONING,FLOWERS HEALTH CENTRE,25321535,966.32 
Department of Health,NHS Sheffield CCG,31/12/2018,C&M-GMS QOF Aspiration,PRC DELEGATED CO-COMMISSIONING,FLOWERS HEALTH CENTRE,25321535,"4,241.34 "
Department of Health,NHS Sheffield CCG,31/12/2018,C&M-PMS Practice Transformational Support,LOCAL ENHANCED SERVICES,FOUNDRY MEDICAL GROUP,25331863,"60,000.00 "
Department of Health,NHS Sheffield CCG,31/12/2018,C&M-PMS Practice Transformational Support,LOCAL ENHANCED SERVICES,FOUNDRY MEDICAL GROUP,25331910,"80,000.00 "
Department of Health,NHS Sheffield CCG,31/12/2018,Cont Care-Physical Disab (<65),CHC ADULT FULLY FUNDED,FOUR SEASONS HEALTH CARE LTD,25036890,"39,302.17 "
Department of Health,NHS Sheffield CCG,31/12/2018,C&M-PMS Contract Value,PRC DELEGATED CO-COMMISSIONING,FOXHILL MEDICAL CENTRE SHEFFIELD,25104524,"51,983.21 "
Department of Health,NHS Sheffield CCG,31/12/2018,C&M-PMS DES Extended Hours Access,PRC DELEGATED CO-COMMISSIONING,FOXHILL MEDICAL CENTRE SHEFFIELD,25104524,"2,940.25 "
Department of Health,NHS Sheffield CCG,31/12/2018,C&M-PMS DES Learn Dsblty Hlth Chk,PRC DELEGATED CO-COMMISSIONING,FOXHILL MEDICAL CENTRE SHEFFIELD,25104524,"1,820.00 "
Department of Health,NHS Sheffield CCG,31/12/2018,C&M-PMS PCO Other,PRC DELEGATED CO-COMMISSIONING,FOXHILL MEDICAL CENTRE SHEFFIELD,25104524,446.84 
Department of Health,NHS Sheffield CCG,31/12/2018,C&M-PMS PCO Seniority,PRC DELEGATED CO-COMMISSIONING,FOXHILL MEDICAL CENTRE SHEFFIELD,25104524,"5,876.35 "
Department of Health,NHS Sheffield CCG,31/12/2018,C&M-PMS Prem Healthcentre Rent,PRC DELEGATED CO-COMMISSIONING,FOXHILL MEDICAL CENTRE SHEFFIELD,25104524,"46,751.16 "
Department of Health,NHS Sheffield CCG,31/12/2018,C&M-PMS QOF Aspiration,PRC DELEGATED CO-COMMISSIONING,FOXHILL MEDICAL CENTRE SHEFFIELD,25104524,"5,580.51 "
Department of Health,NHS Sheffield CCG,31/12/2018,C&M-PMS Contract Value,PRC DELEGATED CO-COMMISSIONING,GLEADLESS MEDICAL CENTRE,25104479,"69,435.00 "
Department of Health,NHS Sheffield CCG,31/12/2018,C&M-PMS Out of Hours Opt Outs,PRC DELEGATED CO-COMMISSIONING,GLEADLESS MEDICAL CENTRE,25104479,16.70 
Department of Health,NHS Sheffield CCG,31/12/2018,C&M-PMS PCO Other,PRC DELEGATED CO-COMMISSIONING,GLEADLESS MEDICAL CENTRE,25104479,619.11 
Department of Health,NHS Sheffield CCG,31/12/2018,C&M-PMS PCO Seniority,PRC DELEGATED CO-COMMISSIONING,GLEADLESS MEDICAL CENTRE,25104479,"3,453.48 "
Department of Health,NHS Sheffield CCG,31/12/2018,C&M-PMS Prem Notional Rent,PRC DELEGATED CO-COMMISSIONING,GLEADLESS MEDICAL CENTRE,25104479,"6,750.00 "
Department of Health,NHS Sheffield CCG,31/12/2018,C&M-PMS Prem Rates,PRC DELEGATED CO-COMMISSIONING,GLEADLESS MEDICAL CENTRE,25104479,"1,564.00 "
Department of Health,NHS Sheffield CCG,31/12/2018,C&M-PMS QOF Aspiration,PRC DELEGATED CO-COMMISSIONING,GLEADLESS MEDICAL CENTRE,25104479,"7,712.98 "
Department of Health,NHS Sheffield CCG,31/12/2018,C&M-GMS Cost of Drugs -Prescribing,LOCAL ENHANCED SERVICES,GRENOSIDE SURGERY,25321474,"9,021.88 "
Department of Health,NHS Sheffield CCG,31/12/2018,C&M-GMS DES Extended Hours Access,PRC DELEGATED CO-COMMISSIONING,GRENOSIDE SURGERY,25321474,"3,512.15 "
Department of Health,NHS Sheffield CCG,31/12/2018,C&M-GMS Global Sum,PRC DELEGATED CO-COMMISSIONING,GRENOSIDE SURGERY,25321474,"57,531.70 "
Department of Health,NHS Sheffield CCG,31/12/2018,C&M-GMS PCO Seniority,PRC DELEGATED CO-COMMISSIONING,GRENOSIDE SURGERY,25321474,"1,650.68 "
Department of Health,NHS Sheffield CCG,31/12/2018,C&M-GMS Prem Notional Rent,PRC DELEGATED CO-COMMISSIONING,GRENOSIDE SURGERY,25321474,"8,110.42 "
Department of Health,NHS Sheffield CCG,31/12/2018,C&M-GMS Prem Rates,PRC DELEGATED CO-COMMISSIONING,GRENOSIDE SURGERY,25321474,"1,916.00 "
Department of Health,NHS Sheffield CCG,31/12/2018,C&M-GMS Prof Fees Prescribing,PRC DELEGATED CO-COMMISSIONING,GRENOSIDE SURGERY,25321474,"1,781.64 "
Department of Health,NHS Sheffield CCG,31/12/2018,C&M-GMS QOF Aspiration,PRC DELEGATED CO-COMMISSIONING,GRENOSIDE SURGERY,25321474,"5,655.38 "
Department of Health,NHS Sheffield CCG,31/12/2018,C&M-GMS Cost of Drugs -Prescribing,LOCAL ENHANCED SERVICES,GREYSTONES MEDICAL CENTRE,25321476,"3,927.64 "
Department of Health,NHS Sheffield CCG,31/12/2018,C&M-GMS DES Extended Hours Access,PRC DELEGATED CO-COMMISSIONING,GREYSTONES MEDICAL CENTRE,25321476,"1,772.70 "
Department of Health,NHS Sheffield CCG,31/12/2018,C&M-GMS Global Sum,PRC DELEGATED CO-COMMISSIONING,GREYSTONES MEDICAL CENTRE,25321476,"19,421.30 "
Department of Health,NHS Sheffield CCG,31/12/2018,C&M-GMS MPIG Correction Factor,PRC DELEGATED CO-COMMISSIONING,GREYSTONES MEDICAL CENTRE,25321476,"1,104.46 "
Department of Health,NHS Sheffield CCG,31/12/2018,C&M-GMS PCO Other,PRC DELEGATED CO-COMMISSIONING,GREYSTONES MEDICAL CENTRE,25321476,292.44 
Department of Health,NHS Sheffield CCG,31/12/2018,C&M-GMS PCO Seniority,PRC DELEGATED CO-COMMISSIONING,GREYSTONES MEDICAL CENTRE,25321476,516.08 
Department of Health,NHS Sheffield CCG,31/12/2018,C&M-GMS Prem Notional Rent,PRC DELEGATED CO-COMMISSIONING,GREYSTONES MEDICAL CENTRE,25321476,"2,885.42 "
Department of Health,NHS Sheffield CCG,31/12/2018,C&M-GMS Prem Rates,PRC DELEGATED CO-COMMISSIONING,GREYSTONES MEDICAL CENTRE,25321476,538.00 
Department of Health,NHS Sheffield CCG,31/12/2018,C&M-GMS Prof Fees Prescribing,PRC DELEGATED CO-COMMISSIONING,GREYSTONES MEDICAL CENTRE,25321476,912.35 
Department of Health,NHS Sheffield CCG,31/12/2018,C&M-GMS QOF Aspiration,PRC DELEGATED CO-COMMISSIONING,GREYSTONES MEDICAL CENTRE,25321476,"2,246.27 "
Department of Health,NHS Sheffield CCG,31/12/2018,C&M-PMS Contract Value,PRC DELEGATED CO-COMMISSIONING,HACKENTHORPE MEDICAL CENTRE,25104481,"48,555.66 "
Department of Health,NHS Sheffield CCG,31/12/2018,C&M-PMS DES Extended Hours Access,PRC DELEGATED CO-COMMISSIONING,HACKENTHORPE MEDICAL CENTRE,25104481,"3,189.63 "
Department of Health,NHS Sheffield CCG,31/12/2018,C&M-PMS PCO Locum Adop/Pat/Mat,PRC DELEGATED CO-COMMISSIONING,HACKENTHORPE MEDICAL CENTRE,25104481,"10,543.41 "
Department of Health,NHS Sheffield CCG,31/12/2018,C&M-PMS PCO Other,PRC DELEGATED CO-COMMISSIONING,HACKENTHORPE MEDICAL CENTRE,25104481,480.78 
Department of Health,NHS Sheffield CCG,31/12/2018,C&M-PMS PCO Seniority,PRC DELEGATED CO-COMMISSIONING,HACKENTHORPE MEDICAL CENTRE,25104481,"2,657.17 "
Department of Health,NHS Sheffield CCG,31/12/2018,C&M-PMS Prem Notional Rent,PRC DELEGATED CO-COMMISSIONING,HACKENTHORPE MEDICAL CENTRE,25104481,"4,981.25 "
Department of Health,NHS Sheffield CCG,31/12/2018,C&M-PMS Prem Rates,PRC DELEGATED CO-COMMISSIONING,HACKENTHORPE MEDICAL CENTRE,25104481,"1,196.00 "
Department of Health,NHS Sheffield CCG,31/12/2018,C&M-PMS Prem Water Rates,PRC DELEGATED CO-COMMISSIONING,HACKENTHORPE MEDICAL CENTRE,25104481,76.03 
Department of Health,NHS Sheffield CCG,31/12/2018,C&M-PMS QOF Aspiration,PRC DELEGATED CO-COMMISSIONING,HACKENTHORPE MEDICAL CENTRE,25104481,"6,346.88 "
Department of Health,NHS Sheffield CCG,31/12/2018,C&M-GMS Cost of Drugs -Prescribing,LOCAL ENHANCED SERVICES,HANDSWORTH MEDICAL PRACTICE SHEFFIELD,25321472,"10,901.54 "
Department of Health,NHS Sheffield CCG,31/12/2018,C&M-GMS DES Extended Hours Access,PRC DELEGATED CO-COMMISSIONING,HANDSWORTH MEDICAL PRACTICE SHEFFIELD,25321472,"4,678.75 "
Department of Health,NHS Sheffield CCG,31/12/2018,C&M-GMS Global Sum,PRC DELEGATED CO-COMMISSIONING,HANDSWORTH MEDICAL PRACTICE SHEFFIELD,25321472,"75,143.63 "
Department of Health,NHS Sheffield CCG,31/12/2018,C&M-GMS PCO Seniority,PRC DELEGATED CO-COMMISSIONING,HANDSWORTH MEDICAL PRACTICE SHEFFIELD,25321472,"1,844.44 "
Department of Health,NHS Sheffield CCG,31/12/2018,C&M-GMS Prem Notional Rent,PRC DELEGATED CO-COMMISSIONING,HANDSWORTH MEDICAL PRACTICE SHEFFIELD,25321472,"3,321.66 "
Department of Health,NHS Sheffield CCG,31/12/2018,C&M-GMS Prof Fees Prescribing,PRC DELEGATED CO-COMMISSIONING,HANDSWORTH MEDICAL PRACTICE SHEFFIELD,25321472,"2,753.57 "
Department of Health,NHS Sheffield CCG,31/12/2018,C&M-GMS QOF Aspiration,PRC DELEGATED CO-COMMISSIONING,HANDSWORTH MEDICAL PRACTICE SHEFFIELD,25321472,"7,379.76 "
Department of Health,NHS Sheffield CCG,31/12/2018,C&M-GMS DES Extended Hours Access,PRC DELEGATED CO-COMMISSIONING,HAROLD STREET MEDICAL CENTRE,25321469,609.43 
Department of Health,NHS Sheffield CCG,31/12/2018,C&M-GMS Global Sum,PRC DELEGATED CO-COMMISSIONING,HAROLD STREET MEDICAL CENTRE,25321469,"21,398.19 "
Department of Health,NHS Sheffield CCG,31/12/2018,C&M-GMS PCO Other,PRC DELEGATED CO-COMMISSIONING,HAROLD STREET MEDICAL CENTRE,25321469,138.11 
Department of Health,NHS Sheffield CCG,31/12/2018,C&M-GMS PCO Seniority,PRC DELEGATED CO-COMMISSIONING,HAROLD STREET MEDICAL CENTRE,25321469,"1,132.19 "
Department of Health,NHS Sheffield CCG,31/12/2018,C&M-GMS Prem Notional Rent,PRC DELEGATED CO-COMMISSIONING,HAROLD STREET MEDICAL CENTRE,25321469,"4,675.00 "
Department of Health,NHS Sheffield CCG,31/12/2018,C&M-GMS QOF Aspiration,PRC DELEGATED CO-COMMISSIONING,HAROLD STREET MEDICAL CENTRE,25321469,"2,464.80 "
Department of Health,NHS Sheffield CCG,31/12/2018,Cont Care-Physical Disab (<65),CHC ADULT FULLY FUNDED,HC ONE LTD,25064835,"26,017.63 "
Department of Health,NHS Sheffield CCG,31/12/2018,Oth Travel Costs-Car Mileage,BEREAVEMENT SERVICE,HEALTH & SOCIAL CARE INFORMATION CENTRE,25195137,674.91 
Department of Health,NHS Sheffield CCG,31/12/2018,Seconded-Basic Sal-Staff fm oth org,BEREAVEMENT SERVICE,HEALTH & SOCIAL CARE INFORMATION CENTRE,25195137,"35,555.40 "
Department of Health,NHS Sheffield CCG,31/12/2018,Seconded-Employer's NHI Costs,BEREAVEMENT SERVICE,HEALTH & SOCIAL CARE INFORMATION CENTRE,25195137,"4,426.85 "
Department of Health,NHS Sheffield CCG,31/12/2018,C&M-GMS Cost of Drugs -Prescribing,LOCAL ENHANCED SERVICES,HEALTH CARE SURGERY,25321479,"5,040.30 "
Department of Health,NHS Sheffield CCG,31/12/2018,C&M-GMS DES Extended Hours Access,PRC DELEGATED CO-COMMISSIONING,HEALTH CARE SURGERY,25321479,"2,388.78 "
Department of Health,NHS Sheffield CCG,31/12/2018,C&M-GMS Global Sum,PRC DELEGATED CO-COMMISSIONING,HEALTH CARE SURGERY,25321479,"38,393.63 "
Department of Health,NHS Sheffield CCG,31/12/2018,C&M-GMS MPIG Correction Factor,PRC DELEGATED CO-COMMISSIONING,HEALTH CARE SURGERY,25321479,780.02 
Department of Health,NHS Sheffield CCG,31/12/2018,C&M-GMS PCO Locum Adop/Pat/Mat,PRC DELEGATED CO-COMMISSIONING,HEALTH CARE SURGERY,25321479,"5,079.56 "
Department of Health,NHS Sheffield CCG,31/12/2018,C&M-GMS PCO Other,PRC DELEGATED CO-COMMISSIONING,HEALTH CARE SURGERY,25321479,373.85 
Department of Health,NHS Sheffield CCG,31/12/2018,C&M-GMS PCO Seniority,PRC DELEGATED CO-COMMISSIONING,HEALTH CARE SURGERY,25321479,567.64 
Department of Health,NHS Sheffield CCG,31/12/2018,C&M-GMS Prem Notional Rent,PRC DELEGATED CO-COMMISSIONING,HEALTH CARE SURGERY,25321479,"3,862.50 "
Department of Health,NHS Sheffield CCG,31/12/2018,C&M-GMS Prem Rates,PRC DELEGATED CO-COMMISSIONING,HEALTH CARE SURGERY,25321479,574.00 
Department of Health,NHS Sheffield CCG,31/12/2018,C&M-GMS Prof Fees Prescribing,PRC DELEGATED CO-COMMISSIONING,HEALTH CARE SURGERY,25321479,"1,279.20 "
Department of Health,NHS Sheffield CCG,31/12/2018,C&M-GMS QOF Aspiration,PRC DELEGATED CO-COMMISSIONING,HEALTH CARE SURGERY,25321479,"3,944.28 "
Department of Health,NHS Sheffield CCG,31/12/2018,Clinical&Medical-Independent Sector,Learning Difficulties - S117,HEATHCOTES M LTD,25128477,"30,845.75 "
Department of Health,NHS Sheffield CCG,31/12/2018,C&M-GMS Cost of Drugs -Prescribing,LOCAL ENHANCED SERVICES,HEELEY GREEN SURGERY,25321477,"6,481.83 "
Department of Health,NHS Sheffield CCG,31/12/2018,C&M-GMS DES Extended Hours Access,PRC DELEGATED CO-COMMISSIONING,HEELEY GREEN SURGERY,25321477,"2,796.33 "
Department of Health,NHS Sheffield CCG,31/12/2018,C&M-GMS Global Sum,PRC DELEGATED CO-COMMISSIONING,HEELEY GREEN SURGERY,25321477,"42,556.51 "
Department of Health,NHS Sheffield CCG,31/12/2018,C&M-GMS MPIG Correction Factor,PRC DELEGATED CO-COMMISSIONING,HEELEY GREEN SURGERY,25321477,376.20 
Department of Health,NHS Sheffield CCG,31/12/2018,C&M-GMS PCO Seniority,PRC DELEGATED CO-COMMISSIONING,HEELEY GREEN SURGERY,25321477,757.89 
Department of Health,NHS Sheffield CCG,31/12/2018,C&M-GMS Prem Notional Rent,PRC DELEGATED CO-COMMISSIONING,HEELEY GREEN SURGERY,25321477,"3,254.17 "
Department of Health,NHS Sheffield CCG,31/12/2018,C&M-GMS Prof Fees Prescribing,PRC DELEGATED CO-COMMISSIONING,HEELEY GREEN SURGERY,25321477,"1,418.64 "
Department of Health,NHS Sheffield CCG,31/12/2018,C&M-GMS QOF Aspiration,PRC DELEGATED CO-COMMISSIONING,HEELEY GREEN SURGERY,25321477,"4,672.20 "
Department of Health,NHS Sheffield CCG,31/12/2018,C&M-GMS Cost of Drugs -Prescribing,LOCAL ENHANCED SERVICES,HOLLIES MEDICAL CENTRE,25340993,"10,424.28 "
Department of Health,NHS Sheffield CCG,31/12/2018,C&M-GMS DES Extended Hours Access,PRC DELEGATED CO-COMMISSIONING,HOLLIES MEDICAL CENTRE,25340993,"4,291.63 "
Department of Health,NHS Sheffield CCG,31/12/2018,C&M-GMS Global Sum,PRC DELEGATED CO-COMMISSIONING,HOLLIES MEDICAL CENTRE,25340993,"58,468.27 "
Department of Health,NHS Sheffield CCG,31/12/2018,C&M-GMS MPIG Correction Factor,PRC DELEGATED CO-COMMISSIONING,HOLLIES MEDICAL CENTRE,25340993,"1,452.73 "
Department of Health,NHS Sheffield CCG,31/12/2018,C&M-GMS PCO Other,PRC DELEGATED CO-COMMISSIONING,HOLLIES MEDICAL CENTRE,25340993,623.72 
Department of Health,NHS Sheffield CCG,31/12/2018,C&M-GMS PCO Seniority,PRC DELEGATED CO-COMMISSIONING,HOLLIES MEDICAL CENTRE,25340993,"2,264.25 "
Department of Health,NHS Sheffield CCG,31/12/2018,C&M-GMS Prem Notional Rent,PRC DELEGATED CO-COMMISSIONING,HOLLIES MEDICAL CENTRE,25340993,"3,229.17 "
Department of Health,NHS Sheffield CCG,31/12/2018,C&M-GMS Prem Rates,PRC DELEGATED CO-COMMISSIONING,HOLLIES MEDICAL CENTRE,25340993,"1,224.00 "
Department of Health,NHS Sheffield CCG,31/12/2018,C&M-GMS Prof Fees Prescribing,PRC DELEGATED CO-COMMISSIONING,HOLLIES MEDICAL CENTRE,25340993,"2,536.59 "
Department of Health,NHS Sheffield CCG,31/12/2018,C&M-GMS QOF Aspiration,PRC DELEGATED CO-COMMISSIONING,HOLLIES MEDICAL CENTRE,25340993,"6,440.45 "
Department of Health,NHS Sheffield CCG,31/12/2018,Cont Care-Physical Disab (<65),CHC ADULT FULLY FUNDED,HORIZON CARE HOMES LTD,25064680,"27,215.87 "
Department of Health,NHS Sheffield CCG,31/12/2018,Cont Care-Physical Disab (<65),CHC ADULT FULLY FUNDED,HORIZON CARE HOMES LTD,25064686,"30,581.14 "
Department of Health,NHS Sheffield CCG,31/12/2018,Cont Care-Physical Disab (<65),CHC ADULT FULLY FUNDED,HORIZON CARE HOMES LTD,25064689,"58,124.97 "
Department of Health,NHS Sheffield CCG,31/12/2018,Cont Care-Physical Disab (65+),CHC ADULT FULLY FUNDED,HORIZON CARE HOMES LTD,25155754,"53,142.85 "
Department of Health,NHS Sheffield CCG,31/12/2018,C&M-PMS Contract Value,PRC DELEGATED CO-COMMISSIONING,JAUNTY SPRINGS HEALTH CENTRE,25104483,"30,396.04 "
Department of Health,NHS Sheffield CCG,31/12/2018,C&M-PMS DES Extended Hours Access,PRC DELEGATED CO-COMMISSIONING,JAUNTY SPRINGS HEALTH CENTRE,25104483,"1,725.20 "
Department of Health,NHS Sheffield CCG,31/12/2018,C&M-PMS PCO Other,PRC DELEGATED CO-COMMISSIONING,JAUNTY SPRINGS HEALTH CENTRE,25104483,284.89 
Department of Health,NHS Sheffield CCG,31/12/2018,C&M-PMS PCO Seniority,PRC DELEGATED CO-COMMISSIONING,JAUNTY SPRINGS HEALTH CENTRE,25104483,908.56 
Department of Health,NHS Sheffield CCG,31/12/2018,C&M-PMS Prem Notional Rent,PRC DELEGATED CO-COMMISSIONING,JAUNTY SPRINGS HEALTH CENTRE,25104483,"3,208.33 "
Department of Health,NHS Sheffield CCG,31/12/2018,C&M-PMS Prem Rates,PRC DELEGATED CO-COMMISSIONING,JAUNTY SPRINGS HEALTH CENTRE,25104483,631.00 
Department of Health,NHS Sheffield CCG,31/12/2018,C&M-PMS QOF Aspiration,PRC DELEGATED CO-COMMISSIONING,JAUNTY SPRINGS HEALTH CENTRE,25104483,"3,861.25 "
Department of Health,NHS Sheffield CCG,31/12/2018,C&M-GMS IT Comm Servs -GP Practices,PRIMARY CARE IT,KIER BUSINESS SERVICES LTD,25064650,"103,393.20 "
Department of Health,NHS Sheffield CCG,31/12/2018,FM Computer Contracts,BUSINESS INFORMATICS,KIER BUSINESS SERVICES LTD,25064650,"36,933.60 "
Department of Health,NHS Sheffield CCG,31/12/2018,C&M-GMS LES Translation Fees,INTERPRETING SERVICES,LANGUAGELINE SOLUTIONS,25128373,"40,874.64 "
Department of Health,NHS Sheffield CCG,31/12/2018,C&M-GMS LES Translation Fees,INTERPRETING SERVICES,LANGUAGELINE SOLUTIONS,25128392,"33,024.00 "
Department of Health,NHS Sheffield CCG,31/12/2018,Hcare Srv Rec NHS Trust-Contract Baseline,ACUTE COMMISSIONING,LEEDS TEACHING HOSPITALS NHS TRUST,25155477,"44,759.00 "
Department of Health,NHS Sheffield CCG,31/12/2018,Cont Care-Physical Disab (<65),CHC ADULT FULLY FUNDED,LONGLEY HEALTH CARE LTD,25064844,"119,657.22 "
Department of Health,NHS Sheffield CCG,31/12/2018,Cont Care-Physical Disab (<65),CHC ADULT FULLY FUNDED,LOXLEY HEALTH CARE LTD,25064847,"42,622.04 "
Department of Health,NHS Sheffield CCG,31/12/2018,C&M-PMS Contract Value,PRC DELEGATED CO-COMMISSIONING,MANCHESTER ROAD SURGERY SHEFFIELD,25104487,"32,546.58 "
Department of Health,NHS Sheffield CCG,31/12/2018,C&M-PMS PCO Seniority,PRC DELEGATED CO-COMMISSIONING,MANCHESTER ROAD SURGERY SHEFFIELD,25104487,"1,788.20 "
Department of Health,NHS Sheffield CCG,31/12/2018,C&M-PMS Prem Cost Rent,PRC DELEGATED CO-COMMISSIONING,MANCHESTER ROAD SURGERY SHEFFIELD,25104487,"3,472.17 "
Department of Health,NHS Sheffield CCG,31/12/2018,C&M-PMS Prem Notional Rent,PRC DELEGATED CO-COMMISSIONING,MANCHESTER ROAD SURGERY SHEFFIELD,25104487,442.92 
Department of Health,NHS Sheffield CCG,31/12/2018,C&M-PMS Prem Rates,PRC DELEGATED CO-COMMISSIONING,MANCHESTER ROAD SURGERY SHEFFIELD,25104487,948.00 
Department of Health,NHS Sheffield CCG,31/12/2018,C&M-PMS Prem Water Rates,PRC DELEGATED CO-COMMISSIONING,MANCHESTER ROAD SURGERY SHEFFIELD,25104487,147.89 
Department of Health,NHS Sheffield CCG,31/12/2018,C&M-PMS QOF Aspiration,PRC DELEGATED CO-COMMISSIONING,MANCHESTER ROAD SURGERY SHEFFIELD,25104487,"4,036.85 "
Department of Health,NHS Sheffield CCG,31/12/2018,C&M-PMS Contract Value,PRC DELEGATED CO-COMMISSIONING,MANOR & PARK GROUP PRACTICE,25115996,"76,837.91 "
Department of Health,NHS Sheffield CCG,31/12/2018,C&M-PMS DES Extended Hours Access,PRC DELEGATED CO-COMMISSIONING,MANOR & PARK GROUP PRACTICE,25115996,"6,620.09 "
Department of Health,NHS Sheffield CCG,31/12/2018,C&M-PMS Out of Hours Opt Outs,PRC DELEGATED CO-COMMISSIONING,MANOR & PARK GROUP PRACTICE,25115996,43.03 
Department of Health,NHS Sheffield CCG,31/12/2018,C&M-PMS Prem Notional Rent,PRC DELEGATED CO-COMMISSIONING,MANOR & PARK GROUP PRACTICE,25115996,"9,050.00 "
Department of Health,NHS Sheffield CCG,31/12/2018,C&M-PMS Prem Rates,PRC DELEGATED CO-COMMISSIONING,MANOR & PARK GROUP PRACTICE,25115996,975.00 
Department of Health,NHS Sheffield CCG,31/12/2018,C&M-PMS Prem Water Rates,PRC DELEGATED CO-COMMISSIONING,MANOR & PARK GROUP PRACTICE,25115996,826.37 
Department of Health,NHS Sheffield CCG,31/12/2018,C&M-PMS QOF Aspiration,PRC DELEGATED CO-COMMISSIONING,MANOR & PARK GROUP PRACTICE,25115996,"7,862.89 "
Department of Health,NHS Sheffield CCG,31/12/2018,C&M-GMS Cost of Drugs -Prescribing,LOCAL ENHANCED SERVICES,MATHEWS PRACTICE,25321487,187.66 
Department of Health,NHS Sheffield CCG,31/12/2018,C&M-GMS DES Extended Hours Access,PRC DELEGATED CO-COMMISSIONING,MATHEWS PRACTICE,25321487,"8,281.16 "
Department of Health,NHS Sheffield CCG,31/12/2018,C&M-GMS DES Minor Surgery,PRC DELEGATED CO-COMMISSIONING,MATHEWS PRACTICE,25321487,"4,365.00 "
Department of Health,NHS Sheffield CCG,31/12/2018,C&M-GMS Global Sum,PRC DELEGATED CO-COMMISSIONING,MATHEWS PRACTICE,25321487,"62,858.59 "
Department of Health,NHS Sheffield CCG,31/12/2018,C&M-GMS MPIG Correction Factor,PRC DELEGATED CO-COMMISSIONING,MATHEWS PRACTICE,25321487,598.96 
Department of Health,NHS Sheffield CCG,31/12/2018,C&M-GMS PCO Seniority,PRC DELEGATED CO-COMMISSIONING,MATHEWS PRACTICE,25321487,935.88 
Department of Health,NHS Sheffield CCG,31/12/2018,C&M-GMS Prem Notional Rent,PRC DELEGATED CO-COMMISSIONING,MATHEWS PRACTICE,25321487,"8,660.42 "
Department of Health,NHS Sheffield CCG,31/12/2018,C&M-GMS Prem Rates,PRC DELEGATED CO-COMMISSIONING,MATHEWS PRACTICE,25321487,"1,962.00 "
Department of Health,NHS Sheffield CCG,31/12/2018,C&M-GMS Prof Fees Prescribing,PRC DELEGATED CO-COMMISSIONING,MATHEWS PRACTICE,25321487,118.22 
Department of Health,NHS Sheffield CCG,31/12/2018,C&M-GMS QOF Aspiration,PRC DELEGATED CO-COMMISSIONING,MATHEWS PRACTICE,25321487,"7,748.47 "
Department of Health,NHS Sheffield CCG,31/12/2018,C&M-PMS Contract Value,PRC DELEGATED CO-COMMISSIONING,MEADOWHEAD GROUP PRACTICE,25104485,"77,318.95 "
Department of Health,NHS Sheffield CCG,31/12/2018,C&M-PMS DES Extended Hours Access,PRC DELEGATED CO-COMMISSIONING,MEADOWHEAD GROUP PRACTICE,25104485,"4,673.05 "
Department of Health,NHS Sheffield CCG,31/12/2018,C&M-PMS Out of Hours Opt Outs,PRC DELEGATED CO-COMMISSIONING,MEADOWHEAD GROUP PRACTICE,25104485,138.58 
Department of Health,NHS Sheffield CCG,31/12/2018,C&M-PMS PCO Seniority,PRC DELEGATED CO-COMMISSIONING,MEADOWHEAD GROUP PRACTICE,25104485,"4,026.07 "
Department of Health,NHS Sheffield CCG,31/12/2018,C&M-PMS Prem Cost Rent,PRC DELEGATED CO-COMMISSIONING,MEADOWHEAD GROUP PRACTICE,25104485,"3,647.42 "
Department of Health,NHS Sheffield CCG,31/12/2018,C&M-PMS Prem Notional Rent,PRC DELEGATED CO-COMMISSIONING,MEADOWHEAD GROUP PRACTICE,25104485,"3,358.33 "
Department of Health,NHS Sheffield CCG,31/12/2018,C&M-PMS Prem Rates,PRC DELEGATED CO-COMMISSIONING,MEADOWHEAD GROUP PRACTICE,25104485,"1,788.00 "
Department of Health,NHS Sheffield CCG,31/12/2018,C&M-PMS Prem Water Rates,PRC DELEGATED CO-COMMISSIONING,MEADOWHEAD GROUP PRACTICE,25104485,863.13 
Department of Health,NHS Sheffield CCG,31/12/2018,C&M-PMS QOF Aspiration,PRC DELEGATED CO-COMMISSIONING,MEADOWHEAD GROUP PRACTICE,25104485,"9,134.83 "
Department of Health,NHS Sheffield CCG,31/12/2018,C&M-GMS Cost of Drugs -Prescribing,LOCAL ENHANCED SERVICES,MEDICAL CENTRE CRYSTAL PEAKS,25321483,"3,975.67 "
Department of Health,NHS Sheffield CCG,31/12/2018,C&M-GMS DES Extended Hours Access,PRC DELEGATED CO-COMMISSIONING,MEDICAL CENTRE CRYSTAL PEAKS,25321483,"3,135.00 "
Department of Health,NHS Sheffield CCG,31/12/2018,C&M-GMS Global Sum,PRC DELEGATED CO-COMMISSIONING,MEDICAL CENTRE CRYSTAL PEAKS,25321483,"45,920.89 "
Department of Health,NHS Sheffield CCG,31/12/2018,C&M-GMS MPIG Correction Factor,PRC DELEGATED CO-COMMISSIONING,MEDICAL CENTRE CRYSTAL PEAKS,25321483,"1,131.34 "
Department of Health,NHS Sheffield CCG,31/12/2018,C&M-GMS PCO Other,PRC DELEGATED CO-COMMISSIONING,MEDICAL CENTRE CRYSTAL PEAKS,25321483,474.67 
Department of Health,NHS Sheffield CCG,31/12/2018,C&M-GMS PCO Seniority,PRC DELEGATED CO-COMMISSIONING,MEDICAL CENTRE CRYSTAL PEAKS,25321483,"2,377.33 "
Department of Health,NHS Sheffield CCG,31/12/2018,C&M-GMS Prem Notional Rent,PRC DELEGATED CO-COMMISSIONING,MEDICAL CENTRE CRYSTAL PEAKS,25321483,270.00 
Department of Health,NHS Sheffield CCG,31/12/2018,C&M-GMS Prem Rates,PRC DELEGATED CO-COMMISSIONING,MEDICAL CENTRE CRYSTAL PEAKS,25321483,977.00 
Department of Health,NHS Sheffield CCG,31/12/2018,C&M-GMS Prof Fees Prescribing,PRC DELEGATED CO-COMMISSIONING,MEDICAL CENTRE CRYSTAL PEAKS,25321483,"1,169.35 "
Department of Health,NHS Sheffield CCG,31/12/2018,C&M-GMS QOF Aspiration,PRC DELEGATED CO-COMMISSIONING,MEDICAL CENTRE CRYSTAL PEAKS,25321483,"6,363.66 "
Department of Health,NHS Sheffield CCG,31/12/2018,C&M-GMS Cost of Drugs -Prescribing,LOCAL ENHANCED SERVICES,MILL ROAD SURGERY SHEFFIELD,25321490,"5,484.91 "
Department of Health,NHS Sheffield CCG,31/12/2018,C&M-GMS DES Extended Hours Access,PRC DELEGATED CO-COMMISSIONING,MILL ROAD SURGERY SHEFFIELD,25321490,"2,500.88 "
Department of Health,NHS Sheffield CCG,31/12/2018,C&M-GMS Global Sum,PRC DELEGATED CO-COMMISSIONING,MILL ROAD SURGERY SHEFFIELD,25321490,"40,769.31 "
Department of Health,NHS Sheffield CCG,31/12/2018,C&M-GMS MPIG Correction Factor,PRC DELEGATED CO-COMMISSIONING,MILL ROAD SURGERY SHEFFIELD,25321490,122.04 
Department of Health,NHS Sheffield CCG,31/12/2018,C&M-GMS PCO Other,PRC DELEGATED CO-COMMISSIONING,MILL ROAD SURGERY SHEFFIELD,25321490,389.44 
Department of Health,NHS Sheffield CCG,31/12/2018,C&M-GMS PCO Seniority,PRC DELEGATED CO-COMMISSIONING,MILL ROAD SURGERY SHEFFIELD,25321490,447.12 
Department of Health,NHS Sheffield CCG,31/12/2018,C&M-GMS Prem Notional Rent,PRC DELEGATED CO-COMMISSIONING,MILL ROAD SURGERY SHEFFIELD,25321490,"4,593.33 "
Department of Health,NHS Sheffield CCG,31/12/2018,C&M-GMS Prem Rates,PRC DELEGATED CO-COMMISSIONING,MILL ROAD SURGERY SHEFFIELD,25321490,972.00 
Department of Health,NHS Sheffield CCG,31/12/2018,C&M-GMS Prof Fees Prescribing,PRC DELEGATED CO-COMMISSIONING,MILL ROAD SURGERY SHEFFIELD,25321490,"1,040.85 "
Department of Health,NHS Sheffield CCG,31/12/2018,C&M-GMS QOF Aspiration,PRC DELEGATED CO-COMMISSIONING,MILL ROAD SURGERY SHEFFIELD,25321490,"4,960.33 "
Department of Health,NHS Sheffield CCG,31/12/2018,C&M-PMS Contract Value,PRC DELEGATED CO-COMMISSIONING,MOSBOROUGH HEALTH CENTRE,25104489,"48,377.22 "
Department of Health,NHS Sheffield CCG,31/12/2018,C&M-PMS DES Extended Hours Access,PRC DELEGATED CO-COMMISSIONING,MOSBOROUGH HEALTH CENTRE,25104489,"3,129.78 "
Department of Health,NHS Sheffield CCG,31/12/2018,C&M-PMS PCO Other,PRC DELEGATED CO-COMMISSIONING,MOSBOROUGH HEALTH CENTRE,25104489,471.11 
Department of Health,NHS Sheffield CCG,31/12/2018,C&M-PMS PCO Seniority,PRC DELEGATED CO-COMMISSIONING,MOSBOROUGH HEALTH CENTRE,25104489,"2,346.00 "
Department of Health,NHS Sheffield CCG,31/12/2018,C&M-PMS Prem Notional Rent,PRC DELEGATED CO-COMMISSIONING,MOSBOROUGH HEALTH CENTRE,25104489,"4,091.67 "
Department of Health,NHS Sheffield CCG,31/12/2018,C&M-PMS Prem Rates,PRC DELEGATED CO-COMMISSIONING,MOSBOROUGH HEALTH CENTRE,25104489,891.00 
Department of Health,NHS Sheffield CCG,31/12/2018,C&M-PMS QOF Aspiration,PRC DELEGATED CO-COMMISSIONING,MOSBOROUGH HEALTH CENTRE,25104489,"5,763.82 "
Department of Health,NHS Sheffield CCG,31/12/2018,Cont Care- Prior Year Payments,CHC ADULT FULLY FUNDED,NATIONAL AUTISTIC SOCIETY,25128223,"29,779.20 "
Department of Health,NHS Sheffield CCG,31/12/2018,C&M-PMS Contract Value,PRC DELEGATED CO-COMMISSIONING,NETHERGREEN SURGERY,25104491,"63,373.08 "
Department of Health,NHS Sheffield CCG,31/12/2018,C&M-PMS DES Extended Hours Access,PRC DELEGATED CO-COMMISSIONING,NETHERGREEN SURGERY,25104491,"4,410.38 "
Department of Health,NHS Sheffield CCG,31/12/2018,C&M-PMS DES Learn Dsblty Hlth Chk,PRC DELEGATED CO-COMMISSIONING,NETHERGREEN SURGERY,25104491,280.00 
Department of Health,NHS Sheffield CCG,31/12/2018,C&M-PMS PCO Seniority,PRC DELEGATED CO-COMMISSIONING,NETHERGREEN SURGERY,25104491,"3,720.15 "
Department of Health,NHS Sheffield CCG,31/12/2018,C&M-PMS Prem Cost Rent,PRC DELEGATED CO-COMMISSIONING,NETHERGREEN SURGERY,25104491,"5,057.33 "
Department of Health,NHS Sheffield CCG,31/12/2018,C&M-PMS Prem Rates,PRC DELEGATED CO-COMMISSIONING,NETHERGREEN SURGERY,25104491,"1,236.00 "
Department of Health,NHS Sheffield CCG,31/12/2018,C&M-PMS QOF Aspiration,PRC DELEGATED CO-COMMISSIONING,NETHERGREEN SURGERY,25104491,"6,267.38 "
Department of Health,NHS Sheffield CCG,31/12/2018,Charges from CSU,BUSINESS INFORMATICS,NHS NORTH OF ENGLAND CSU,25372363,"30,083.00 "
Department of Health,NHS Sheffield CCG,31/12/2018,C&M-GMS Cost of Drugs -Prescribing,LOCAL ENHANCED SERVICES,NORFOLK PARK HEALTH CENTRE,25321495,"6,091.69 "
Department of Health,NHS Sheffield CCG,31/12/2018,C&M-GMS Global Sum,PRC DELEGATED CO-COMMISSIONING,NORFOLK PARK HEALTH CENTRE,25321495,"37,687.75 "
Department of Health,NHS Sheffield CCG,31/12/2018,C&M-GMS MPIG Correction Factor,PRC DELEGATED CO-COMMISSIONING,NORFOLK PARK HEALTH CENTRE,25321495,924.61 
Department of Health,NHS Sheffield CCG,31/12/2018,C&M-GMS PCO Seniority,PRC DELEGATED CO-COMMISSIONING,NORFOLK PARK HEALTH CENTRE,25321495,"2,695.44 "
Department of Health,NHS Sheffield CCG,31/12/2018,C&M-GMS Prem Healthcentre Rent,PRC DELEGATED CO-COMMISSIONING,NORFOLK PARK HEALTH CENTRE,25321495,"24,044.86 "
Department of Health,NHS Sheffield CCG,31/12/2018,C&M-GMS Prof Fees Prescribing,PRC DELEGATED CO-COMMISSIONING,NORFOLK PARK HEALTH CENTRE,25321495,"1,524.07 "
Department of Health,NHS Sheffield CCG,31/12/2018,C&M-GMS QOF Aspiration,PRC DELEGATED CO-COMMISSIONING,NORFOLK PARK HEALTH CENTRE,25321495,"3,810.65 "
Department of Health,NHS Sheffield CCG,31/12/2018,C&M-GMS Cost of Drugs -Prescribing,LOCAL ENHANCED SERVICES,NORWOOD MEDICAL CENTRE SHEFFIELD,25321498,"6,483.84 "
Department of Health,NHS Sheffield CCG,31/12/2018,C&M-GMS DES Extended Hours Access,PRC DELEGATED CO-COMMISSIONING,NORWOOD MEDICAL CENTRE SHEFFIELD,25321498,"3,785.75 "
Department of Health,NHS Sheffield CCG,31/12/2018,C&M-GMS DES Learn Dsblty Hlth Chk,PRC DELEGATED CO-COMMISSIONING,NORWOOD MEDICAL CENTRE SHEFFIELD,25321498,"3,780.00 "
Department of Health,NHS Sheffield CCG,31/12/2018,C&M-GMS Global Sum,PRC DELEGATED CO-COMMISSIONING,NORWOOD MEDICAL CENTRE SHEFFIELD,25321498,"64,743.93 "
Department of Health,NHS Sheffield CCG,31/12/2018,C&M-GMS PCO Other,PRC DELEGATED CO-COMMISSIONING,NORWOOD MEDICAL CENTRE SHEFFIELD,25321498,559.17 
Department of Health,NHS Sheffield CCG,31/12/2018,C&M-GMS PCO Seniority,PRC DELEGATED CO-COMMISSIONING,NORWOOD MEDICAL CENTRE SHEFFIELD,25321498,"2,894.41 "
Department of Health,NHS Sheffield CCG,31/12/2018,C&M-GMS Prem Notional Rent,PRC DELEGATED CO-COMMISSIONING,NORWOOD MEDICAL CENTRE SHEFFIELD,25321498,"5,187.50 "
Department of Health,NHS Sheffield CCG,31/12/2018,C&M-GMS Prof Fees Prescribing,PRC DELEGATED CO-COMMISSIONING,NORWOOD MEDICAL CENTRE SHEFFIELD,25321498,"1,832.25 "
Department of Health,NHS Sheffield CCG,31/12/2018,C&M-GMS QOF Aspiration,PRC DELEGATED CO-COMMISSIONING,NORWOOD MEDICAL CENTRE SHEFFIELD,25321498,"8,350.37 "
Department of Health,NHS Sheffield CCG,31/12/2018,Hcare Srv Rec NHS Trust-Contract Baseline,ACUTE COMMISSIONING,NOTTINGHAM UNIVERSITY HOSPITALS NHS TRUST,25155567,"28,040.00 "
Department of Health,NHS Sheffield CCG,31/12/2018,Clinical&Medical-Independent Sector,ACUTE COMMISSIONING,ONEHEALTH GROUP,25155721,"74,162.00 "
Department of Health,NHS Sheffield CCG,31/12/2018,C&M-GMS Cost of Drugs -Dispensing,LOCAL ENHANCED SERVICES,OUGHTIBRIDGE SURGERY,25321501,"(21,075.08)"
Department of Health,NHS Sheffield CCG,31/12/2018,C&M-GMS GP Statutory Levy,PRC DELEGATED CO-COMMISSIONING,OUGHTIBRIDGE SURGERY,25321501,(174.84)
Department of Health,NHS Sheffield CCG,31/12/2018,C&M-GMS PrscChrgsCll&RmttdbyGPCntra,PRC DELEGATED CO-COMMISSIONING,OUGHTIBRIDGE SURGERY,25321501,(756.80)
Department of Health,NHS Sheffield CCG,31/12/2018,C&M-GMS Voluntary Levy,PRC DELEGATED CO-COMMISSIONING,OUGHTIBRIDGE SURGERY,25321501,(29.14)
Department of Health,NHS Sheffield CCG,31/12/2018,C&M-GMS Cost of Drugs -Dispensing,LOCAL ENHANCED SERVICES,OUGHTIBRIDGE SURGERY,25321502,"36,096.30 "
Department of Health,NHS Sheffield CCG,31/12/2018,C&M-GMS Global Sum,PRC DELEGATED CO-COMMISSIONING,OUGHTIBRIDGE SURGERY,25321502,"43,039.08 "
Department of Health,NHS Sheffield CCG,31/12/2018,C&M-GMS PCO Locum Adop/Pat/Mat,PRC DELEGATED CO-COMMISSIONING,OUGHTIBRIDGE SURGERY,25321502,"5,733.09 "
Department of Health,NHS Sheffield CCG,31/12/2018,C&M-GMS PCO Seniority,PRC DELEGATED CO-COMMISSIONING,OUGHTIBRIDGE SURGERY,25321502,"1,385.17 "
Department of Health,NHS Sheffield CCG,31/12/2018,C&M-GMS Prem Notional Rent,PRC DELEGATED CO-COMMISSIONING,OUGHTIBRIDGE SURGERY,25321502,"3,957.33 "
Department of Health,NHS Sheffield CCG,31/12/2018,C&M-GMS Prem Rates,PRC DELEGATED CO-COMMISSIONING,OUGHTIBRIDGE SURGERY,25321502,976.00 
Department of Health,NHS Sheffield CCG,31/12/2018,C&M-GMS Prof Fees Dispensing,PRC DELEGATED CO-COMMISSIONING,OUGHTIBRIDGE SURGERY,25321502,"6,703.06 "
Department of Health,NHS Sheffield CCG,31/12/2018,C&M-GMS PrscrptnChrgsColl&RmttdbyGP,LOCAL ENHANCED SERVICES,OUGHTIBRIDGE SURGERY,25321502,756.80 
Department of Health,NHS Sheffield CCG,31/12/2018,C&M-GMS QOF Aspiration,PRC DELEGATED CO-COMMISSIONING,OUGHTIBRIDGE SURGERY,25321502,"4,454.94 "
Department of Health,NHS Sheffield CCG,31/12/2018,C&M-PMS Contract Value,PRC DELEGATED CO-COMMISSIONING,OWLTHORPE MEDICAL CENTRE,25104493,"33,565.48 "
Department of Health,NHS Sheffield CCG,31/12/2018,C&M-PMS Out of Hours Opt Outs,PRC DELEGATED CO-COMMISSIONING,OWLTHORPE MEDICAL CENTRE,25104493,9.14 
Department of Health,NHS Sheffield CCG,31/12/2018,C&M-PMS PCO Other,PRC DELEGATED CO-COMMISSIONING,OWLTHORPE MEDICAL CENTRE,25104493,"3,131.00 "
Department of Health,NHS Sheffield CCG,31/12/2018,C&M-PMS Prem Actual Rent,PRC DELEGATED CO-COMMISSIONING,OWLTHORPE MEDICAL CENTRE,25104493,"7,539.58 "
Department of Health,NHS Sheffield CCG,31/12/2018,C&M-PMS Prem Rates,PRC DELEGATED CO-COMMISSIONING,OWLTHORPE MEDICAL CENTRE,25104493,"11,947.65 "
Department of Health,NHS Sheffield CCG,31/12/2018,C&M-PMS QOF Aspiration,PRC DELEGATED CO-COMMISSIONING,OWLTHORPE MEDICAL CENTRE,25104493,"4,022.05 "
Department of Health,NHS Sheffield CCG,31/12/2018,C&M-PMS GP Statutory Levy,PRC DELEGATED CO-COMMISSIONING,PAGE HALL MEDICAL CENTRE,25104494,(233.97)
Department of Health,NHS Sheffield CCG,31/12/2018,C&M-PMS Out of Hours Opt Outs,PRC DELEGATED CO-COMMISSIONING,PAGE HALL MEDICAL CENTRE,25104494,"(2,697.24)"
Department of Health,NHS Sheffield CCG,31/12/2018,C&M-PMS Voluntary Levy,PRC DELEGATED CO-COMMISSIONING,PAGE HALL MEDICAL CENTRE,25104494,(39.00)
Department of Health,NHS Sheffield CCG,31/12/2018,C&M-PMS Contract Value,PRC DELEGATED CO-COMMISSIONING,PAGE HALL MEDICAL CENTRE,25104495,"57,376.24 "
Department of Health,NHS Sheffield CCG,31/12/2018,C&M-PMS DES Extended Hours Access,PRC DELEGATED CO-COMMISSIONING,PAGE HALL MEDICAL CENTRE,25104495,"3,602.40 "
Department of Health,NHS Sheffield CCG,31/12/2018,C&M-PMS PCO Other,PRC DELEGATED CO-COMMISSIONING,PAGE HALL MEDICAL CENTRE,25104495,535.50 
Department of Health,NHS Sheffield CCG,31/12/2018,C&M-PMS PCO Seniority,PRC DELEGATED CO-COMMISSIONING,PAGE HALL MEDICAL CENTRE,25104495,"2,275.74 "
Department of Health,NHS Sheffield CCG,31/12/2018,C&M-PMS Prem Notional Rent,PRC DELEGATED CO-COMMISSIONING,PAGE HALL MEDICAL CENTRE,25104495,"4,833.33 "
Department of Health,NHS Sheffield CCG,31/12/2018,C&M-PMS Prem Rates,PRC DELEGATED CO-COMMISSIONING,PAGE HALL MEDICAL CENTRE,25104495,"1,076.33 "
Department of Health,NHS Sheffield CCG,31/12/2018,C&M-PMS Prem Water Rates,PRC DELEGATED CO-COMMISSIONING,PAGE HALL MEDICAL CENTRE,25104495,156.42 
Department of Health,NHS Sheffield CCG,31/12/2018,C&M-PMS QOF Aspiration,PRC DELEGATED CO-COMMISSIONING,PAGE HALL MEDICAL CENTRE,25104495,"4,906.36 "
Department of Health,NHS Sheffield CCG,31/12/2018,C&M-PMS Contract Value,PRC DELEGATED CO-COMMISSIONING,PITSMOOR SURGERY,25104497,"77,650.22 "
Department of Health,NHS Sheffield CCG,31/12/2018,C&M-PMS DES Extended Hours Access,PRC DELEGATED CO-COMMISSIONING,PITSMOOR SURGERY,25104497,"4,465.95 "
Department of Health,NHS Sheffield CCG,31/12/2018,C&M-PMS Out of Hours Opt Outs,PRC DELEGATED CO-COMMISSIONING,PITSMOOR SURGERY,25104497,17.00 
Department of Health,NHS Sheffield CCG,31/12/2018,C&M-PMS Prem Notional Rent,PRC DELEGATED CO-COMMISSIONING,PITSMOOR SURGERY,25104497,"9,650.00 "
Department of Health,NHS Sheffield CCG,31/12/2018,C&M-PMS Prem Rates,PRC DELEGATED CO-COMMISSIONING,PITSMOOR SURGERY,25104497,"2,154.00 "
Department of Health,NHS Sheffield CCG,31/12/2018,C&M-PMS QOF Aspiration,PRC DELEGATED CO-COMMISSIONING,PITSMOOR SURGERY,25104497,"7,079.26 "
Department of Health,NHS Sheffield CCG,31/12/2018,C&M-PMS Contract Value,PRC DELEGATED CO-COMMISSIONING,PORTER BROOK MEDICAL CENTRE,25104498,"(8,499.33)"
Department of Health,NHS Sheffield CCG,31/12/2018,C&M-PMS GP Statutory Levy,PRC DELEGATED CO-COMMISSIONING,PORTER BROOK MEDICAL CENTRE,25104498,(889.50)
Department of Health,NHS Sheffield CCG,31/12/2018,C&M-PMS Out of Hours Opt Outs,PRC DELEGATED CO-COMMISSIONING,PORTER BROOK MEDICAL CENTRE,25104498,"(8,269.97)"
Department of Health,NHS Sheffield CCG,31/12/2018,C&M-PMS Voluntary Levy,PRC DELEGATED CO-COMMISSIONING,PORTER BROOK MEDICAL CENTRE,25104498,(148.25)
Department of Health,NHS Sheffield CCG,31/12/2018,C&M-PMS Contract Value,PRC DELEGATED CO-COMMISSIONING,PORTER BROOK MEDICAL CENTRE,25104499,"175,852.18 "
Department of Health,NHS Sheffield CCG,31/12/2018,C&M-PMS DES Extended Hours Access,PRC DELEGATED CO-COMMISSIONING,PORTER BROOK MEDICAL CENTRE,25104499,"13,684.28 "
Department of Health,NHS Sheffield CCG,31/12/2018,C&M-PMS DES Learn Dsblty Hlth Chk,PRC DELEGATED CO-COMMISSIONING,PORTER BROOK MEDICAL CENTRE,25104499,140.00 
Department of Health,NHS Sheffield CCG,31/12/2018,C&M-PMS Out of Hours Opt Outs,PRC DELEGATED CO-COMMISSIONING,PORTER BROOK MEDICAL CENTRE,25104499,417.96 
Department of Health,NHS Sheffield CCG,31/12/2018,C&M-PMS PCO Other,PRC DELEGATED CO-COMMISSIONING,PORTER BROOK MEDICAL CENTRE,25104499,"1,902.44 "
Department of Health,NHS Sheffield CCG,31/12/2018,C&M-PMS PCO Seniority,PRC DELEGATED CO-COMMISSIONING,PORTER BROOK MEDICAL CENTRE,25104499,"7,309.50 "
Department of Health,NHS Sheffield CCG,31/12/2018,C&M-PMS Prem Actual Rent,PRC DELEGATED CO-COMMISSIONING,PORTER BROOK MEDICAL CENTRE,25104499,"1,333.33 "
Department of Health,NHS Sheffield CCG,31/12/2018,C&M-PMS Prem Notional Rent,PRC DELEGATED CO-COMMISSIONING,PORTER BROOK MEDICAL CENTRE,25104499,"9,666.67 "
Department of Health,NHS Sheffield CCG,31/12/2018,C&M-PMS Prem Rates,PRC DELEGATED CO-COMMISSIONING,PORTER BROOK MEDICAL CENTRE,25104499,"2,315.00 "
Department of Health,NHS Sheffield CCG,31/12/2018,C&M-PMS QOF Aspiration,PRC DELEGATED CO-COMMISSIONING,PORTER BROOK MEDICAL CENTRE,25104499,"8,562.06 "
Department of Health,NHS Sheffield CCG,31/12/2018,Clinical&Medical-Commercial Sector,PATIENT TRANSPORT,PREMIER CARE DIRECT LTD,25003509,"112,480.54 "
Department of Health,NHS Sheffield CCG,31/12/2018,C&M-GMS LES Basket of Procedures,LOCAL ENHANCED SERVICES,PRIMARY CARE SHEFFIELD LTD,25024803,"30,276.00 "
Department of Health,NHS Sheffield CCG,31/12/2018,C&M-PMS Contract Value,PRC DELEGATED CO-COMMISSIONING,RICHMOND MEDICAL CENTRE,25104501,"66,305.86 "
Department of Health,NHS Sheffield CCG,31/12/2018,C&M-PMS DES Extended Hours Access,PRC DELEGATED CO-COMMISSIONING,RICHMOND MEDICAL CENTRE,25104501,"4,182.85 "
Department of Health,NHS Sheffield CCG,31/12/2018,C&M-PMS PCO Other,PRC DELEGATED CO-COMMISSIONING,RICHMOND MEDICAL CENTRE,25104501,617.78 
Department of Health,NHS Sheffield CCG,31/12/2018,C&M-PMS PCO Seniority,PRC DELEGATED CO-COMMISSIONING,RICHMOND MEDICAL CENTRE,25104501,"2,141.97 "
Department of Health,NHS Sheffield CCG,31/12/2018,C&M-PMS Prem Notional Rent,PRC DELEGATED CO-COMMISSIONING,RICHMOND MEDICAL CENTRE,25104501,"4,731.00 "
Department of Health,NHS Sheffield CCG,31/12/2018,C&M-PMS Prem Rates,PRC DELEGATED CO-COMMISSIONING,RICHMOND MEDICAL CENTRE,25104501,"1,425.00 "
Department of Health,NHS Sheffield CCG,31/12/2018,C&M-PMS QOF Aspiration,PRC DELEGATED CO-COMMISSIONING,RICHMOND MEDICAL CENTRE,25104501,"8,188.48 "
Department of Health,NHS Sheffield CCG,31/12/2018,Cont Care-Physical Disab (<65),CHC ADULT FULLY FUNDED,ROSEBERRY CARE CENTRES,25064661,"32,414.61 "
Department of Health,NHS Sheffield CCG,31/12/2018,Cont Care-Physical Disab (<65),CHC ADULT FULLY FUNDED,ROSEBERRY CARE CENTRES,25064728,"37,213.87 "
Department of Health,NHS Sheffield CCG,31/12/2018,Cont Care-Funded Nursing Care Allow,FUNDED NURSING CARE,ROSEBERRY CARE CENTRES,25064781,"35,185.88 "
Department of Health,NHS Sheffield CCG,31/12/2018,Hcare Srv Rec Fdtn Trust-Contract Baseline,ACUTE COMMISSIONING,ROTHERHAM NHS FOUNDATION TRUST,25155513,"428,814.00 "
Department of Health,NHS Sheffield CCG,31/12/2018,C&M-PMS Contract Value,PRC DELEGATED CO-COMMISSIONING,RUSTLINGS ROAD MEDICAL CENTRE,25104505,"27,601.10 "
Department of Health,NHS Sheffield CCG,31/12/2018,C&M-PMS DES Learn Dsblty Hlth Chk,PRC DELEGATED CO-COMMISSIONING,RUSTLINGS ROAD MEDICAL CENTRE,25104505,560.00 
Department of Health,NHS Sheffield CCG,31/12/2018,C&M-PMS PCO Other,PRC DELEGATED CO-COMMISSIONING,RUSTLINGS ROAD MEDICAL CENTRE,25104505,347.11 
Department of Health,NHS Sheffield CCG,31/12/2018,C&M-PMS PCO Seniority,PRC DELEGATED CO-COMMISSIONING,RUSTLINGS ROAD MEDICAL CENTRE,25104505,"1,762.63 "
Department of Health,NHS Sheffield CCG,31/12/2018,C&M-PMS Prem Notional Rent,PRC DELEGATED CO-COMMISSIONING,RUSTLINGS ROAD MEDICAL CENTRE,25104505,"1,167.92 "
Department of Health,NHS Sheffield CCG,31/12/2018,C&M-PMS QOF Aspiration,PRC DELEGATED CO-COMMISSIONING,RUSTLINGS ROAD MEDICAL CENTRE,25104505,"2,389.45 "
Department of Health,NHS Sheffield CCG,31/12/2018,C&M-GMS Cost of Drugs -Prescribing,LOCAL ENHANCED SERVICES,SHARROW LANE MEDICAL CENTRE,25321507,"2,753.06 "
Department of Health,NHS Sheffield CCG,31/12/2018,C&M-GMS DES Extended Hours Access,PRC DELEGATED CO-COMMISSIONING,SHARROW LANE MEDICAL CENTRE,25321507,"1,844.43 "
Department of Health,NHS Sheffield CCG,31/12/2018,C&M-GMS Global Sum,PRC DELEGATED CO-COMMISSIONING,SHARROW LANE MEDICAL CENTRE,25321507,"22,972.19 "
Department of Health,NHS Sheffield CCG,31/12/2018,C&M-GMS MPIG Correction Factor,PRC DELEGATED CO-COMMISSIONING,SHARROW LANE MEDICAL CENTRE,25321507,"1,960.32 "
Department of Health,NHS Sheffield CCG,31/12/2018,C&M-GMS PCO Other,PRC DELEGATED CO-COMMISSIONING,SHARROW LANE MEDICAL CENTRE,25321507,302.53 
Department of Health,NHS Sheffield CCG,31/12/2018,C&M-GMS PCO Seniority,PRC DELEGATED CO-COMMISSIONING,SHARROW LANE MEDICAL CENTRE,25321507,289.24 
Department of Health,NHS Sheffield CCG,31/12/2018,C&M-GMS Prem Notional Rent,PRC DELEGATED CO-COMMISSIONING,SHARROW LANE MEDICAL CENTRE,25321507,"2,741.66 "
Department of Health,NHS Sheffield CCG,31/12/2018,C&M-GMS Prem Rates,PRC DELEGATED CO-COMMISSIONING,SHARROW LANE MEDICAL CENTRE,25321507,517.00 
Department of Health,NHS Sheffield CCG,31/12/2018,C&M-GMS Prof Fees Prescribing,PRC DELEGATED CO-COMMISSIONING,SHARROW LANE MEDICAL CENTRE,25321507,681.05 
Department of Health,NHS Sheffield CCG,31/12/2018,C&M-GMS QOF Aspiration,PRC DELEGATED CO-COMMISSIONING,SHARROW LANE MEDICAL CENTRE,25321507,"2,521.19 "
Department of Health,NHS Sheffield CCG,31/12/2018,Hcare Srv Rec Fdtn Trust-CQUIN,ACUTE CHILDRENS SERVICES,SHEFFIELD CHILDRENS NHS FOUNDATION TRUST,25064403,"40,434.00 "
Department of Health,NHS Sheffield CCG,31/12/2018,Hcare Srv Rec Fdtn Trust-CQUIN,COMMUNITY SERVICES,SHEFFIELD CHILDRENS NHS FOUNDATION TRUST,25064403,"3,550.00 "
Department of Health,NHS Sheffield CCG,31/12/2018,Hcare Srv Rec Fdtn Trust-Contract Baseline,ACUTE CHILDRENS SERVICES,SHEFFIELD CHILDRENS NHS FOUNDATION TRUST,25064403,"(41,146.15)"
Department of Health,NHS Sheffield CCG,31/12/2018,Hcare Srv Rec Fdtn Trust-Contract Baseline,CHILD AND ADOLESCENT MENTAL HEALTH,SHEFFIELD CHILDRENS NHS FOUNDATION TRUST,25064403,"13,355.00 "
Department of Health,NHS Sheffield CCG,31/12/2018,Hcare Srv Rec Fdtn Trust-Contract Baseline,COMMUNITY SERVICES,SHEFFIELD CHILDRENS NHS FOUNDATION TRUST,25064403,"(17,364.00)"
Department of Health,NHS Sheffield CCG,31/12/2018,Hcare Srv Rec Fdtn Trust-Contract Baseline,HIGH COST DRUGS,SHEFFIELD CHILDRENS NHS FOUNDATION TRUST,25064403,"14,713.00 "
Department of Health,NHS Sheffield CCG,31/12/2018,Hcare Srv Rec Fdtn Trust-Contract Baseline,MENTAL HEALTH CONTRACTS,SHEFFIELD CHILDRENS NHS FOUNDATION TRUST,25064403,"1,444.00 "
Department of Health,NHS Sheffield CCG,31/12/2018,Hcare Srv Rec Fdtn Trust-Contract Baseline,PLANNED CARE,SHEFFIELD CHILDRENS NHS FOUNDATION TRUST,25064403,"86,811.00 "
Department of Health,NHS Sheffield CCG,31/12/2018,Hcare Srv Rec Fdtn Trust-Contract Baseline,URGENT CARE,SHEFFIELD CHILDRENS NHS FOUNDATION TRUST,25064403,"103,863.00 "
Department of Health,NHS Sheffield CCG,31/12/2018,Hcare Srv Rec Fdtn Trust-CQUIN,ACUTE CHILDRENS SERVICES,SHEFFIELD CHILDRENS NHS FOUNDATION TRUST,25308569,"33,781.00 "
Department of Health,NHS Sheffield CCG,31/12/2018,Hcare Srv Rec Fdtn Trust-CQUIN,COMMUNITY SERVICES,SHEFFIELD CHILDRENS NHS FOUNDATION TRUST,25308569,"3,984.00 "
Department of Health,NHS Sheffield CCG,31/12/2018,Hcare Srv Rec Fdtn Trust-Contract Baseline,ACUTE CHILDRENS SERVICES,SHEFFIELD CHILDRENS NHS FOUNDATION TRUST,25308569,"259,425.79 "
Department of Health,NHS Sheffield CCG,31/12/2018,Hcare Srv Rec Fdtn Trust-Contract Baseline,CHILD AND ADOLESCENT MENTAL HEALTH,SHEFFIELD CHILDRENS NHS FOUNDATION TRUST,25308569,"429,451.00 "
Department of Health,NHS Sheffield CCG,31/12/2018,Hcare Srv Rec Fdtn Trust-Contract Baseline,COMMUNITY SERVICES,SHEFFIELD CHILDRENS NHS FOUNDATION TRUST,25308569,"318,731.00 "
Department of Health,NHS Sheffield CCG,31/12/2018,Hcare Srv Rec Fdtn Trust-Contract Baseline,HIGH COST DRUGS,SHEFFIELD CHILDRENS NHS FOUNDATION TRUST,25308569,"62,433.00 "
Department of Health,NHS Sheffield CCG,31/12/2018,Hcare Srv Rec Fdtn Trust-Contract Baseline,MENTAL HEALTH CONTRACTS,SHEFFIELD CHILDRENS NHS FOUNDATION TRUST,25308569,"5,096.00 "
Department of Health,NHS Sheffield CCG,31/12/2018,Hcare Srv Rec Fdtn Trust-Contract Baseline,PLANNED CARE,SHEFFIELD CHILDRENS NHS FOUNDATION TRUST,25308569,"956,921.00 "
Department of Health,NHS Sheffield CCG,31/12/2018,Hcare Srv Rec Fdtn Trust-Contract Baseline,SAFEGUARDING,SHEFFIELD CHILDRENS NHS FOUNDATION TRUST,25308569,"33,664.00 "
Department of Health,NHS Sheffield CCG,31/12/2018,Hcare Srv Rec Fdtn Trust-Contract Baseline,URGENT CARE,SHEFFIELD CHILDRENS NHS FOUNDATION TRUST,25308569,"983,413.00 "
Department of Health,NHS Sheffield CCG,31/12/2018,Services From Local Authorities,MENTAL HEALTH SERVICES - COLLABORATIVE COMMISSIONING,SHEFFIELD CITY COUNCIL,25128492,"35,697.04 "
Department of Health,NHS Sheffield CCG,31/12/2018,Clinical&Medical-Othe Public Sector,COMMUNITY SERVICES,SHEFFIELD CITY COUNCIL,25128630,"21,831.00 "
Department of Health,NHS Sheffield CCG,31/12/2018,Clinical&Medical-Othe Public Sector,MENTAL HEALTH SERVICES - COLLABORATIVE COMMISSIONING,SHEFFIELD CITY COUNCIL,25128630,"16,919.00 "
Department of Health,NHS Sheffield CCG,31/12/2018,Clinical&Medical-Othe Public Sector,REABLEMENT,SHEFFIELD CITY COUNCIL,25128630,"160,417.00 "
Department of Health,NHS Sheffield CCG,31/12/2018,Clinical&Medical-Othe Public Sector,SAFEGUARDING,SHEFFIELD CITY COUNCIL,25128630,"15,324.00 "
Department of Health,NHS Sheffield CCG,31/12/2018,Soc Care-Joint H&C Teams/Working,INTERMEDIATE CARE,SHEFFIELD CITY COUNCIL,25128630,"151,447.00 "
Department of Health,NHS Sheffield CCG,31/12/2018,Soc Care-Other Soc Care,COMMUNITY SERVICES,SHEFFIELD CITY COUNCIL,25128630,"1,467,750.00 "
Department of Health,NHS Sheffield CCG,31/12/2018,Soc Care-Support Prim Care,COMMUNITY SERVICES,SHEFFIELD CITY COUNCIL,25128630,"58,000.00 "
Department of Health,NHS Sheffield CCG,31/12/2018,Cont Care- Children,CHC CHILDREN,SHEFFIELD CITY COUNCIL,25241419,"32,598.28 "
Department of Health,NHS Sheffield CCG,31/12/2018,Cont Care-Physical Disab (65+),CHC ADULT FULLY FUNDED,SHEFFIELD CITY COUNCIL,25241439,"841,793.33 "
Department of Health,NHS Sheffield CCG,31/12/2018,Cont Care-NHSFT-Adult 100% Funded,CHC ADULT FULLY FUNDED,SHEFFIELD HEALTH & SOCIAL CARE NHS FOUNDATION TRUST,25003492,"112,070.00 "
Department of Health,NHS Sheffield CCG,31/12/2018,Cont Care-NHSFT-Adult 100% Funded,CHC ADULT FULLY FUNDED,SHEFFIELD HEALTH & SOCIAL CARE NHS FOUNDATION TRUST,25003494,"40,355.00 "
Department of Health,NHS Sheffield CCG,31/12/2018,C&M-APMS Contract Value,PRC DELEGATED CO-COMMISSIONING,SHEFFIELD HEALTH & SOCIAL CARE NHS FOUNDATION TRUST,25115991,"124,128.29 "
Department of Health,NHS Sheffield CCG,31/12/2018,C&M-APMS DES Extended Hours Access,PRC DELEGATED CO-COMMISSIONING,SHEFFIELD HEALTH & SOCIAL CARE NHS FOUNDATION TRUST,25115991,"7,791.43 "
Department of Health,NHS Sheffield CCG,31/12/2018,C&M-APMS OOH Opt Outs,PRC DELEGATED CO-COMMISSIONING,SHEFFIELD HEALTH & SOCIAL CARE NHS FOUNDATION TRUST,25115991,5.00 
Department of Health,NHS Sheffield CCG,31/12/2018,C&M-APMS Prem Actual Rent,PRC DELEGATED CO-COMMISSIONING,SHEFFIELD HEALTH & SOCIAL CARE NHS FOUNDATION TRUST,25115991,"5,169.68 "
Department of Health,NHS Sheffield CCG,31/12/2018,C&M-APMS Prem Healthcentre Rent,PRC DELEGATED CO-COMMISSIONING,SHEFFIELD HEALTH & SOCIAL CARE NHS FOUNDATION TRUST,25115991,"59,021.14 "
Department of Health,NHS Sheffield CCG,31/12/2018,C&M-APMS Prem Notional Rent,PRC DELEGATED CO-COMMISSIONING,SHEFFIELD HEALTH & SOCIAL CARE NHS FOUNDATION TRUST,25115991,"2,804.17 "
Department of Health,NHS Sheffield CCG,31/12/2018,C&M-PMS Contract Value,PRC DELEGATED CO-COMMISSIONING,SHEFFIELD HEALTH & SOCIAL CARE NHS FOUNDATION TRUST,25115991,"2,915.63 "
Department of Health,NHS Sheffield CCG,31/12/2018,C&M-PMS DES Learn Dsblty Hlth Chk,PRC DELEGATED CO-COMMISSIONING,SHEFFIELD HEALTH & SOCIAL CARE NHS FOUNDATION TRUST,25115991,140.00 
Department of Health,NHS Sheffield CCG,31/12/2018,C&M-PMS Out of Hours Opt Outs,PRC DELEGATED CO-COMMISSIONING,SHEFFIELD HEALTH & SOCIAL CARE NHS FOUNDATION TRUST,25115991,107.98 
Department of Health,NHS Sheffield CCG,31/12/2018,C&M-PMS QOF Aspiration,PRC DELEGATED CO-COMMISSIONING,SHEFFIELD HEALTH & SOCIAL CARE NHS FOUNDATION TRUST,25115991,"11,714.38 "
Department of Health,NHS Sheffield CCG,31/12/2018,C&M-APMS Contract Value,PRC DELEGATED CO-COMMISSIONING,SHEFFIELD HEALTH & SOCIAL CARE NHS FOUNDATION TRUST,25115995,"27,406.29 "
Department of Health,NHS Sheffield CCG,31/12/2018,C&M-APMS DES Extended Hours Access,PRC DELEGATED CO-COMMISSIONING,SHEFFIELD HEALTH & SOCIAL CARE NHS FOUNDATION TRUST,25115995,"2,094.75 "
Department of Health,NHS Sheffield CCG,31/12/2018,C&M-APMS OOH Opt Outs,PRC DELEGATED CO-COMMISSIONING,SHEFFIELD HEALTH & SOCIAL CARE NHS FOUNDATION TRUST,25115995,8.11 
Department of Health,NHS Sheffield CCG,31/12/2018,C&M-PMS Contract Value,PRC DELEGATED CO-COMMISSIONING,SHEFFIELD HEALTH & SOCIAL CARE NHS FOUNDATION TRUST,25115995,639.51 
Department of Health,NHS Sheffield CCG,31/12/2018,C&M-PMS Out of Hours Opt Outs,PRC DELEGATED CO-COMMISSIONING,SHEFFIELD HEALTH & SOCIAL CARE NHS FOUNDATION TRUST,25115995,23.68 
Department of Health,NHS Sheffield CCG,31/12/2018,C&M-PMS QOF Aspiration,PRC DELEGATED CO-COMMISSIONING,SHEFFIELD HEALTH & SOCIAL CARE NHS FOUNDATION TRUST,25115995,"1,425.29 "
Department of Health,NHS Sheffield CCG,31/12/2018,Cont Care-NHSFT-Adult 100% Funded,CHC ADULT FULLY FUNDED,SHEFFIELD HEALTH & SOCIAL CARE NHS FOUNDATION TRUST,25195332,"240,830.02 "
Department of Health,NHS Sheffield CCG,31/12/2018,Hcare Srv Rec Fdtn Trust-Contract Baseline,MENTAL HEALTH CONTRACTS,SHEFFIELD HEALTH & SOCIAL CARE NHS FOUNDATION TRUST,25274438,"6,391,179.25 "
Department of Health,NHS Sheffield CCG,31/12/2018,Hcare Srv Rec Fdtn Trust-Contract Baseline,MENTAL HEALTH CONTRACTS,SHEFFIELD HEALTH & SOCIAL CARE NHS FOUNDATION TRUST,25331667,"6,391,179.25 "
Department of Health,NHS Sheffield CCG,31/12/2018,C&M-GMS Practice Transformational Support,LOCAL ENHANCED SERVICES,SHEFFIELD TEACHING HOSPITALS NHS FOUNDATION TRUST,25024572,"44,000.00 "
Department of Health,NHS Sheffield CCG,31/12/2018,Miscellaneous Expenditure (L9),COUNSELLING SERVICES,SHEFFIELD TEACHING HOSPITALS NHS FOUNDATION TRUST,25128277,131.00 
Department of Health,NHS Sheffield CCG,31/12/2018,Oth Travel Costs-Car Mileage,COUNSELLING SERVICES,SHEFFIELD TEACHING HOSPITALS NHS FOUNDATION TRUST,25128277,223.63 
Department of Health,NHS Sheffield CCG,31/12/2018,Seconded-Basic Sal-Staff fm oth org,COUNSELLING SERVICES,SHEFFIELD TEACHING HOSPITALS NHS FOUNDATION TRUST,25128277,"26,145.27 "
Department of Health,NHS Sheffield CCG,31/12/2018,Seconded-Employer's NHI Costs,COUNSELLING SERVICES,SHEFFIELD TEACHING HOSPITALS NHS FOUNDATION TRUST,25128277,"3,284.22 "
Department of Health,NHS Sheffield CCG,31/12/2018,Miscellaneous Expenditure (L9),BEREAVEMENT SERVICE,SHEFFIELD TEACHING HOSPITALS NHS FOUNDATION TRUST,25308539,"4,630.05 "
Department of Health,NHS Sheffield CCG,31/12/2018,Oth Travel Costs-Car Mileage,BEREAVEMENT SERVICE,SHEFFIELD TEACHING HOSPITALS NHS FOUNDATION TRUST,25308539,"1,286.58 "
Department of Health,NHS Sheffield CCG,31/12/2018,Seconded-Basic Sal-Staff fm oth org,BEREAVEMENT SERVICE,SHEFFIELD TEACHING HOSPITALS NHS FOUNDATION TRUST,25308539,"224,505.04 "
Department of Health,NHS Sheffield CCG,31/12/2018,Seconded-Employer's NHI Costs,BEREAVEMENT SERVICE,SHEFFIELD TEACHING HOSPITALS NHS FOUNDATION TRUST,25308539,"27,792.81 "
Department of Health,NHS Sheffield CCG,31/12/2018,C&M-GMS Cost of Drugs -Prescribing,LOCAL ENHANCED SERVICES,SHIREGREEN MEDICAL CENTRE,25321515,"8,770.60 "
Department of Health,NHS Sheffield CCG,31/12/2018,C&M-GMS Global Sum,PRC DELEGATED CO-COMMISSIONING,SHIREGREEN MEDICAL CENTRE,25321515,"58,536.85 "
Department of Health,NHS Sheffield CCG,31/12/2018,C&M-GMS MPIG Correction Factor,PRC DELEGATED CO-COMMISSIONING,SHIREGREEN MEDICAL CENTRE,25321515,453.69 
Department of Health,NHS Sheffield CCG,31/12/2018,C&M-GMS PCO Other,PRC DELEGATED CO-COMMISSIONING,SHIREGREEN MEDICAL CENTRE,25321515,551.72 
Department of Health,NHS Sheffield CCG,31/12/2018,C&M-GMS PCO Seniority,PRC DELEGATED CO-COMMISSIONING,SHIREGREEN MEDICAL CENTRE,25321515,"2,698.11 "
Department of Health,NHS Sheffield CCG,31/12/2018,C&M-GMS Prem Cost Rent,PRC DELEGATED CO-COMMISSIONING,SHIREGREEN MEDICAL CENTRE,25321515,"1,792.33 "
Department of Health,NHS Sheffield CCG,31/12/2018,C&M-GMS Prem Notional Rent,PRC DELEGATED CO-COMMISSIONING,SHIREGREEN MEDICAL CENTRE,25321515,"5,375.00 "
Department of Health,NHS Sheffield CCG,31/12/2018,C&M-GMS Prem Rates,PRC DELEGATED CO-COMMISSIONING,SHIREGREEN MEDICAL CENTRE,25321515,"1,844.00 "
Department of Health,NHS Sheffield CCG,31/12/2018,C&M-GMS Prof Fees Prescribing,PRC DELEGATED CO-COMMISSIONING,SHIREGREEN MEDICAL CENTRE,25321515,"1,953.33 "
Department of Health,NHS Sheffield CCG,31/12/2018,C&M-GMS QOF Aspiration,PRC DELEGATED CO-COMMISSIONING,SHIREGREEN MEDICAL CENTRE,25321515,"6,765.83 "
Department of Health,NHS Sheffield CCG,31/12/2018,C&M-PMS GP Statutory Levy,PRC DELEGATED CO-COMMISSIONING,SLOAN MEDICAL CENTRE,25104506,(392.61)
Department of Health,NHS Sheffield CCG,31/12/2018,C&M-PMS Out of Hours Opt Outs,PRC DELEGATED CO-COMMISSIONING,SLOAN MEDICAL CENTRE,25104506,"(4,438.57)"
Department of Health,NHS Sheffield CCG,31/12/2018,C&M-PMS Voluntary Levy,PRC DELEGATED CO-COMMISSIONING,SLOAN MEDICAL CENTRE,25104506,(65.44)
Department of Health,NHS Sheffield CCG,31/12/2018,C&M-PMS Contract Value,PRC DELEGATED CO-COMMISSIONING,SLOAN MEDICAL CENTRE,25104507,"94,225.19 "
Department of Health,NHS Sheffield CCG,31/12/2018,C&M-PMS DES Extended Hours Access,PRC DELEGATED CO-COMMISSIONING,SLOAN MEDICAL CENTRE,25104507,"6,155.05 "
Department of Health,NHS Sheffield CCG,31/12/2018,C&M-PMS PCO Other,PRC DELEGATED CO-COMMISSIONING,SLOAN MEDICAL CENTRE,25104507,879.11 
Department of Health,NHS Sheffield CCG,31/12/2018,C&M-PMS PCO Seniority,PRC DELEGATED CO-COMMISSIONING,SLOAN MEDICAL CENTRE,25104507,"4,667.97 "
Department of Health,NHS Sheffield CCG,31/12/2018,C&M-PMS Prem Actual Rent,PRC DELEGATED CO-COMMISSIONING,SLOAN MEDICAL CENTRE,25104507,"15,535.83 "
Department of Health,NHS Sheffield CCG,31/12/2018,C&M-PMS Prem Notional Rent,PRC DELEGATED CO-COMMISSIONING,SLOAN MEDICAL CENTRE,25104507,608.33 
Department of Health,NHS Sheffield CCG,31/12/2018,C&M-PMS Prem Rates,PRC DELEGATED CO-COMMISSIONING,SLOAN MEDICAL CENTRE,25104507,"3,083.00 "
Department of Health,NHS Sheffield CCG,31/12/2018,C&M-PMS QOF Aspiration,PRC DELEGATED CO-COMMISSIONING,SLOAN MEDICAL CENTRE,25104507,"9,952.56 "
Department of Health,NHS Sheffield CCG,31/12/2018,C&M-PMS Contract Value,PRC DELEGATED CO-COMMISSIONING,SOTHALL MEDICAL CENTRE,25104508,"71,233.54 "
Department of Health,NHS Sheffield CCG,31/12/2018,C&M-PMS DES Extended Hours Access,PRC DELEGATED CO-COMMISSIONING,SOTHALL MEDICAL CENTRE,25104508,"4,835.50 "
Department of Health,NHS Sheffield CCG,31/12/2018,C&M-PMS Out of Hours Opt Outs,PRC DELEGATED CO-COMMISSIONING,SOTHALL MEDICAL CENTRE,25104508,2.83 
Department of Health,NHS Sheffield CCG,31/12/2018,C&M-PMS PCO Other,PRC DELEGATED CO-COMMISSIONING,SOTHALL MEDICAL CENTRE,25104508,701.89 
Department of Health,NHS Sheffield CCG,31/12/2018,C&M-PMS PCO Seniority,PRC DELEGATED CO-COMMISSIONING,SOTHALL MEDICAL CENTRE,25104508,"4,043.40 "
Department of Health,NHS Sheffield CCG,31/12/2018,C&M-PMS Prem Notional Rent,PRC DELEGATED CO-COMMISSIONING,SOTHALL MEDICAL CENTRE,25104508,"5,116.67 "
Department of Health,NHS Sheffield CCG,31/12/2018,C&M-PMS Prem Rates,PRC DELEGATED CO-COMMISSIONING,SOTHALL MEDICAL CENTRE,25104508,"1,251.00 "
Department of Health,NHS Sheffield CCG,31/12/2018,C&M-PMS QOF Aspiration,PRC DELEGATED CO-COMMISSIONING,SOTHALL MEDICAL CENTRE,25104508,"8,691.35 "
Department of Health,NHS Sheffield CCG,31/12/2018,C&M-PMS Contract Value,PRC DELEGATED CO-COMMISSIONING,SOTHALL MEDICAL CENTRE,25140220,(57.61)
Department of Health,NHS Sheffield CCG,31/12/2018,C&M-PMS GP Statutory Levy,PRC DELEGATED CO-COMMISSIONING,SOTHALL MEDICAL CENTRE,25140220,(304.26)
Department of Health,NHS Sheffield CCG,31/12/2018,C&M-PMS Out of Hours Opt Outs,PRC DELEGATED CO-COMMISSIONING,SOTHALL MEDICAL CENTRE,25140220,"(3,349.46)"
Department of Health,NHS Sheffield CCG,31/12/2018,C&M-PMS Voluntary Levy,PRC DELEGATED CO-COMMISSIONING,SOTHALL MEDICAL CENTRE,25140220,(50.71)
Department of Health,NHS Sheffield CCG,31/12/2018,Clinical&Medical-Voluntary Sector,COLLABORATIVE COMMISSIONING,SOUTH YORKSHIRE HOUSING ASSOCIATION LTD,25003504,"49,200.00 "
Department of Health,NHS Sheffield CCG,31/12/2018,Cont Care- Adult 100% Fully Funded,CHC ADULT FULLY FUNDED,SOUTH YORKSHIRE HOUSING ASSOCIATION LTD,25036859,"25,500.00 "
Department of Health,NHS Sheffield CCG,31/12/2018,Clinical&Medical-Voluntary Sector,COLLABORATIVE COMMISSIONING,SOUTH YORKSHIRE HOUSING ASSOCIATION LTD,25064215,"42,800.00 "
Department of Health,NHS Sheffield CCG,31/12/2018,Cont Care- Adult 100% Fully Funded,CHC ADULT FULLY FUNDED,SOUTH YORKSHIRE HOUSING ASSOCIATION LTD,25064547,"81,249.96 "
Department of Health,NHS Sheffield CCG,31/12/2018,Clinical&Medical-Independent Sector,MENTAL HEALTH CONTRACTS,SOUTH YORKSHIRE HOUSING ASSOCIATION LTD,25064603,"34,435.00 "
Department of Health,NHS Sheffield CCG,31/12/2018,Cont Care-Physical Disab (<65),CHC ADULT FULLY FUNDED,SOUTH YORKSHIRE HOUSING ASSOCIATION LTD,25064703,"79,483.79 "
Department of Health,NHS Sheffield CCG,31/12/2018,C&M-PMS Contract Value,PRC DELEGATED CO-COMMISSIONING,SOUTHEY GREEN MEDICAL CENTRE,25104510,"26,388.53 "
Department of Health,NHS Sheffield CCG,31/12/2018,C&M-PMS DES Extended Hours Access,PRC DELEGATED CO-COMMISSIONING,SOUTHEY GREEN MEDICAL CENTRE,25104510,"2,846.20 "
Department of Health,NHS Sheffield CCG,31/12/2018,C&M-PMS Out of Hours Opt Outs,PRC DELEGATED CO-COMMISSIONING,SOUTHEY GREEN MEDICAL CENTRE,25104510,42.83 
Department of Health,NHS Sheffield CCG,31/12/2018,C&M-PMS PCO Other,PRC DELEGATED CO-COMMISSIONING,SOUTHEY GREEN MEDICAL CENTRE,25104510,"2,220.00 "
Department of Health,NHS Sheffield CCG,31/12/2018,C&M-PMS PCO Seniority,PRC DELEGATED CO-COMMISSIONING,SOUTHEY GREEN MEDICAL CENTRE,25104510,"1,053.32 "
Department of Health,NHS Sheffield CCG,31/12/2018,C&M-PMS Prem Notional Rent,PRC DELEGATED CO-COMMISSIONING,SOUTHEY GREEN MEDICAL CENTRE,25104510,"3,362.50 "
Department of Health,NHS Sheffield CCG,31/12/2018,C&M-PMS Prem Rates,PRC DELEGATED CO-COMMISSIONING,SOUTHEY GREEN MEDICAL CENTRE,25104510,"10,368.00 "
Department of Health,NHS Sheffield CCG,31/12/2018,C&M-PMS QOF Aspiration,PRC DELEGATED CO-COMMISSIONING,SOUTHEY GREEN MEDICAL CENTRE,25104510,"2,539.36 "
Department of Health,NHS Sheffield CCG,31/12/2018,Clinical&Medical-Independent Sector,NCAS/OATS,SPAMEDICA LTD,25064151,"69,398.59 "
Department of Health,NHS Sheffield CCG,31/12/2018,Clinical&Medical-Independent Sector,NCAS/OATS,SPAMEDICA LTD,25064159,"74,006.30 "
Department of Health,NHS Sheffield CCG,31/12/2018,Clinical&Medical-Independent Sector,NCAS/OATS,SPAMEDICA LTD,25064208,"63,777.84 "
Department of Health,NHS Sheffield CCG,31/12/2018,C&M-GMS Global Sum,PRC DELEGATED CO-COMMISSIONING,STANNINGTON MEDICAL CENTRE,25321519,"24,709.21 "
Department of Health,NHS Sheffield CCG,31/12/2018,C&M-GMS PCO Other,PRC DELEGATED CO-COMMISSIONING,STANNINGTON MEDICAL CENTRE,25321519,257.66 
Department of Health,NHS Sheffield CCG,31/12/2018,C&M-GMS PCO Seniority,PRC DELEGATED CO-COMMISSIONING,STANNINGTON MEDICAL CENTRE,25321519,"1,230.08 "
Department of Health,NHS Sheffield CCG,31/12/2018,C&M-GMS Prem Notional Rent,PRC DELEGATED CO-COMMISSIONING,STANNINGTON MEDICAL CENTRE,25321519,"2,575.00 "
Department of Health,NHS Sheffield CCG,31/12/2018,C&M-GMS Prem Rates,PRC DELEGATED CO-COMMISSIONING,STANNINGTON MEDICAL CENTRE,25321519,368.00 
Department of Health,NHS Sheffield CCG,31/12/2018,C&M-GMS QOF Aspiration,PRC DELEGATED CO-COMMISSIONING,STANNINGTON MEDICAL CENTRE,25321519,"2,850.04 "
Department of Health,NHS Sheffield CCG,31/12/2018,C&M-GMS Cost of Drugs -Prescribing,LOCAL ENHANCED SERVICES,STONECROFT MEDICAL CENTRE,25321517,"8,047.13 "
Department of Health,NHS Sheffield CCG,31/12/2018,C&M-GMS Global Sum,PRC DELEGATED CO-COMMISSIONING,STONECROFT MEDICAL CENTRE,25321517,"31,949.37 "
Department of Health,NHS Sheffield CCG,31/12/2018,C&M-GMS MPIG Correction Factor,PRC DELEGATED CO-COMMISSIONING,STONECROFT MEDICAL CENTRE,25321517,618.25 
Department of Health,NHS Sheffield CCG,31/12/2018,C&M-GMS PCO Other,PRC DELEGATED CO-COMMISSIONING,STONECROFT MEDICAL CENTRE,25321517,315.78 
Department of Health,NHS Sheffield CCG,31/12/2018,C&M-GMS PCO Seniority,PRC DELEGATED CO-COMMISSIONING,STONECROFT MEDICAL CENTRE,25321517,"1,894.51 "
Department of Health,NHS Sheffield CCG,31/12/2018,C&M-GMS Prem Notional Rent,PRC DELEGATED CO-COMMISSIONING,STONECROFT MEDICAL CENTRE,25321517,"2,808.33 "
Department of Health,NHS Sheffield CCG,31/12/2018,C&M-GMS Prem Rates,PRC DELEGATED CO-COMMISSIONING,STONECROFT MEDICAL CENTRE,25321517,"1,188.00 "
Department of Health,NHS Sheffield CCG,31/12/2018,C&M-GMS Prof Fees Prescribing,PRC DELEGATED CO-COMMISSIONING,STONECROFT MEDICAL CENTRE,25321517,"1,794.28 "
Department of Health,NHS Sheffield CCG,31/12/2018,C&M-GMS QOF Aspiration,PRC DELEGATED CO-COMMISSIONING,STONECROFT MEDICAL CENTRE,25321517,"4,160.47 "
Department of Health,NHS Sheffield CCG,31/12/2018,Clinical&Medical-Independent Sector,MENTAL HEALTH CONTRACTS,SUSASH GB LTD T/A EAGLE HOUSE,25064484,"30,092.00 "
Department of Health,NHS Sheffield CCG,31/12/2018,Cont Care-Physical Disab (<65),CHC ADULT FULLY FUNDED,SUSASH GB LTD T/A EAGLE HOUSE,25064724,"25,239.85 "
Department of Health,NHS Sheffield CCG,31/12/2018,C&M-GMS Global Sum,PRC DELEGATED CO-COMMISSIONING,TOTLEY RISE MEDICAL CENTRE,25321521,"24,316.41 "
Department of Health,NHS Sheffield CCG,31/12/2018,C&M-GMS MPIG Correction Factor,PRC DELEGATED CO-COMMISSIONING,TOTLEY RISE MEDICAL CENTRE,25321521,103.13 
Department of Health,NHS Sheffield CCG,31/12/2018,C&M-GMS PCO Seniority,PRC DELEGATED CO-COMMISSIONING,TOTLEY RISE MEDICAL CENTRE,25321521,"1,534.18 "
Department of Health,NHS Sheffield CCG,31/12/2018,C&M-GMS Prem Notional Rent,PRC DELEGATED CO-COMMISSIONING,TOTLEY RISE MEDICAL CENTRE,25321521,"1,491.67 "
Department of Health,NHS Sheffield CCG,31/12/2018,C&M-GMS Prem Rates,PRC DELEGATED CO-COMMISSIONING,TOTLEY RISE MEDICAL CENTRE,25321521,151.00 
Department of Health,NHS Sheffield CCG,31/12/2018,C&M-GMS QOF Aspiration,PRC DELEGATED CO-COMMISSIONING,TOTLEY RISE MEDICAL CENTRE,25321521,"1,881.75 "
Department of Health,NHS Sheffield CCG,31/12/2018,C&M-GMS Cost of Drugs -Prescribing,LOCAL ENHANCED SERVICES,TRAMWAYS MEDICAL CENTRE,25321523,"10,886.02 "
Department of Health,NHS Sheffield CCG,31/12/2018,C&M-GMS Global Sum,PRC DELEGATED CO-COMMISSIONING,TRAMWAYS MEDICAL CENTRE,25321523,"61,353.66 "
Department of Health,NHS Sheffield CCG,31/12/2018,C&M-GMS PCO Other,PRC DELEGATED CO-COMMISSIONING,TRAMWAYS MEDICAL CENTRE,25321523,597.78 
Department of Health,NHS Sheffield CCG,31/12/2018,C&M-GMS PCO Seniority,PRC DELEGATED CO-COMMISSIONING,TRAMWAYS MEDICAL CENTRE,25321523,"5,083.40 "
Department of Health,NHS Sheffield CCG,31/12/2018,C&M-GMS Prem Cost Rent,PRC DELEGATED CO-COMMISSIONING,TRAMWAYS MEDICAL CENTRE,25321523,"4,012.75 "
Department of Health,NHS Sheffield CCG,31/12/2018,C&M-GMS Prem Rates,PRC DELEGATED CO-COMMISSIONING,TRAMWAYS MEDICAL CENTRE,25321523,980.00 
Department of Health,NHS Sheffield CCG,31/12/2018,C&M-GMS Prof Fees Prescribing,PRC DELEGATED CO-COMMISSIONING,TRAMWAYS MEDICAL CENTRE,25321523,"2,385.94 "
Department of Health,NHS Sheffield CCG,31/12/2018,C&M-GMS QOF Aspiration,PRC DELEGATED CO-COMMISSIONING,TRAMWAYS MEDICAL CENTRE,25321523,"5,780.50 "
Department of Health,NHS Sheffield CCG,31/12/2018,Cont Care-Funded Nursing Care Allow,FUNDED NURSING CARE,ULTIMA CARE CENTRES (NO1) LTD,25064754,"34,998.43 "
Department of Health,NHS Sheffield CCG,31/12/2018,C&M-APMS LES Basket of Procedures,LOCAL ENHANCED SERVICES,UNIVERSITY HEALTH SERVICE,25003542,"31,494.00 "
Department of Health,NHS Sheffield CCG,31/12/2018,C&M-PMS Contract Value,PRC DELEGATED CO-COMMISSIONING,UNIVERSITY HEALTH SERVICE,25104514,"192,415.94 "
Department of Health,NHS Sheffield CCG,31/12/2018,C&M-PMS Out of Hours Opt Outs,PRC DELEGATED CO-COMMISSIONING,UNIVERSITY HEALTH SERVICE,25104514,440.96 
Department of Health,NHS Sheffield CCG,31/12/2018,C&M-PMS PCO Seniority,PRC DELEGATED CO-COMMISSIONING,UNIVERSITY HEALTH SERVICE,25104514,"4,771.23 "
Department of Health,NHS Sheffield CCG,31/12/2018,C&M-PMS Prem Notional Rent,PRC DELEGATED CO-COMMISSIONING,UNIVERSITY HEALTH SERVICE,25104514,"15,833.33 "
Department of Health,NHS Sheffield CCG,31/12/2018,C&M-PMS QOF Aspiration,PRC DELEGATED CO-COMMISSIONING,UNIVERSITY HEALTH SERVICE,25104514,"3,984.72 "
Department of Health,NHS Sheffield CCG,31/12/2018,C&M-GMS Cost of Drugs -Prescribing,LOCAL ENHANCED SERVICES,UPPERTHORPE MEDICAL CENTRE,25321526,"13,720.74 "
Department of Health,NHS Sheffield CCG,31/12/2018,C&M-GMS DES Extended Hours Access,PRC DELEGATED CO-COMMISSIONING,UPPERTHORPE MEDICAL CENTRE,25321526,"5,447.78 "
Department of Health,NHS Sheffield CCG,31/12/2018,C&M-GMS Global Sum,PRC DELEGATED CO-COMMISSIONING,UPPERTHORPE MEDICAL CENTRE,25321526,"80,572.43 "
Department of Health,NHS Sheffield CCG,31/12/2018,C&M-GMS MPIG Correction Factor,PRC DELEGATED CO-COMMISSIONING,UPPERTHORPE MEDICAL CENTRE,25321526,"1,325.74 "
Department of Health,NHS Sheffield CCG,31/12/2018,C&M-GMS PCO Seniority,PRC DELEGATED CO-COMMISSIONING,UPPERTHORPE MEDICAL CENTRE,25321526,"3,731.66 "
Department of Health,NHS Sheffield CCG,31/12/2018,C&M-GMS Prem Actual Rent,PRC DELEGATED CO-COMMISSIONING,UPPERTHORPE MEDICAL CENTRE,25321526,"29,475.00 "
Department of Health,NHS Sheffield CCG,31/12/2018,C&M-GMS Prem Notional Rent,PRC DELEGATED CO-COMMISSIONING,UPPERTHORPE MEDICAL CENTRE,25321526,"2,497.83 "
Department of Health,NHS Sheffield CCG,31/12/2018,C&M-GMS Prem Rates,PRC DELEGATED CO-COMMISSIONING,UPPERTHORPE MEDICAL CENTRE,25321526,"2,338.00 "
Department of Health,NHS Sheffield CCG,31/12/2018,C&M-GMS Prem Water Rates,PRC DELEGATED CO-COMMISSIONING,UPPERTHORPE MEDICAL CENTRE,25321526,220.69 
Department of Health,NHS Sheffield CCG,31/12/2018,C&M-GMS Prof Fees Prescribing,PRC DELEGATED CO-COMMISSIONING,UPPERTHORPE MEDICAL CENTRE,25321526,"3,289.60 "
Department of Health,NHS Sheffield CCG,31/12/2018,C&M-GMS QOF Aspiration,PRC DELEGATED CO-COMMISSIONING,UPPERTHORPE MEDICAL CENTRE,25321526,"8,681.64 "
Department of Health,NHS Sheffield CCG,31/12/2018,C&M-PMS Contract Value,PRC DELEGATED CO-COMMISSIONING,UPWELL STREET SURGERY,25104516,"37,659.26 "
Department of Health,NHS Sheffield CCG,31/12/2018,C&M-PMS Out of Hours Opt Outs,PRC DELEGATED CO-COMMISSIONING,UPWELL STREET SURGERY,25104516,17.00 
Department of Health,NHS Sheffield CCG,31/12/2018,C&M-PMS PCO Other,PRC DELEGATED CO-COMMISSIONING,UPWELL STREET SURGERY,25104516,357.44 
Department of Health,NHS Sheffield CCG,31/12/2018,C&M-PMS PCO Seniority,PRC DELEGATED CO-COMMISSIONING,UPWELL STREET SURGERY,25104516,"2,065.26 "
Department of Health,NHS Sheffield CCG,31/12/2018,C&M-PMS Prem Notional Rent,PRC DELEGATED CO-COMMISSIONING,UPWELL STREET SURGERY,25104516,"8,137.50 "
Department of Health,NHS Sheffield CCG,31/12/2018,C&M-PMS Prem Rates,PRC DELEGATED CO-COMMISSIONING,UPWELL STREET SURGERY,25104516,"1,265.00 "
Department of Health,NHS Sheffield CCG,31/12/2018,C&M-PMS Prem Water Rates,PRC DELEGATED CO-COMMISSIONING,UPWELL STREET SURGERY,25104516,141.77 
Department of Health,NHS Sheffield CCG,31/12/2018,C&M-PMS QOF Aspiration,PRC DELEGATED CO-COMMISSIONING,UPWELL STREET SURGERY,25104516,"4,294.99 "
Department of Health,NHS Sheffield CCG,31/12/2018,C&M-PMS Contract Value,PRC DELEGATED CO-COMMISSIONING,VALLEY MEDICAL CENTRE,25104518,"78,034.72 "
Department of Health,NHS Sheffield CCG,31/12/2018,C&M-PMS Out of Hours Opt Outs,PRC DELEGATED CO-COMMISSIONING,VALLEY MEDICAL CENTRE,25104518,7.70 
Department of Health,NHS Sheffield CCG,31/12/2018,C&M-PMS PCO Seniority,PRC DELEGATED CO-COMMISSIONING,VALLEY MEDICAL CENTRE,25104518,"4,394.32 "
Department of Health,NHS Sheffield CCG,31/12/2018,C&M-PMS Prem Actual Rent,PRC DELEGATED CO-COMMISSIONING,VALLEY MEDICAL CENTRE,25104518,"25,468.75 "
Department of Health,NHS Sheffield CCG,31/12/2018,C&M-PMS Prem Rates,PRC DELEGATED CO-COMMISSIONING,VALLEY MEDICAL CENTRE,25104518,"1,254.00 "
Department of Health,NHS Sheffield CCG,31/12/2018,C&M-PMS QOF Aspiration,PRC DELEGATED CO-COMMISSIONING,VALLEY MEDICAL CENTRE,25104518,"8,516.48 "
Department of Health,NHS Sheffield CCG,31/12/2018,C&M-GMS Cost of Drugs -Prescribing,LOCAL ENHANCED SERVICES,WALKLEY HOUSE MEDICAL CENTRE,25321531,"8,617.76 "
Department of Health,NHS Sheffield CCG,31/12/2018,C&M-GMS Global Sum,PRC DELEGATED CO-COMMISSIONING,WALKLEY HOUSE MEDICAL CENTRE,25321531,"84,641.43 "
Department of Health,NHS Sheffield CCG,31/12/2018,C&M-GMS PCO Seniority,PRC DELEGATED CO-COMMISSIONING,WALKLEY HOUSE MEDICAL CENTRE,25321531,"3,144.55 "
Department of Health,NHS Sheffield CCG,31/12/2018,C&M-GMS Prem Notional Rent,PRC DELEGATED CO-COMMISSIONING,WALKLEY HOUSE MEDICAL CENTRE,25321531,"5,635.50 "
Department of Health,NHS Sheffield CCG,31/12/2018,C&M-GMS Prem Rates,PRC DELEGATED CO-COMMISSIONING,WALKLEY HOUSE MEDICAL CENTRE,25321531,"1,779.00 "
Department of Health,NHS Sheffield CCG,31/12/2018,C&M-GMS Prof Fees Prescribing,PRC DELEGATED CO-COMMISSIONING,WALKLEY HOUSE MEDICAL CENTRE,25321531,"2,109.97 "
Department of Health,NHS Sheffield CCG,31/12/2018,C&M-GMS QOF Aspiration,PRC DELEGATED CO-COMMISSIONING,WALKLEY HOUSE MEDICAL CENTRE,25321531,"8,592.68 "
Department of Health,NHS Sheffield CCG,31/12/2018,C&M-GMS Cost of Drugs -Prescribing,LOCAL ENHANCED SERVICES,WHITE HOUSE SURGERY SHEFFIELD,25321529,"5,029.99 "
Department of Health,NHS Sheffield CCG,31/12/2018,C&M-GMS DES Extended Hours Access,PRC DELEGATED CO-COMMISSIONING,WHITE HOUSE SURGERY SHEFFIELD,25321529,"3,021.48 "
Department of Health,NHS Sheffield CCG,31/12/2018,C&M-GMS Global Sum,PRC DELEGATED CO-COMMISSIONING,WHITE HOUSE SURGERY SHEFFIELD,25321529,"49,329.42 "
Department of Health,NHS Sheffield CCG,31/12/2018,C&M-GMS MPIG Correction Factor,PRC DELEGATED CO-COMMISSIONING,WHITE HOUSE SURGERY SHEFFIELD,25321529,"1,391.30 "
Department of Health,NHS Sheffield CCG,31/12/2018,C&M-GMS PCO Seniority,PRC DELEGATED CO-COMMISSIONING,WHITE HOUSE SURGERY SHEFFIELD,25321529,"2,263.71 "
Department of Health,NHS Sheffield CCG,31/12/2018,C&M-GMS Prem Notional Rent,PRC DELEGATED CO-COMMISSIONING,WHITE HOUSE SURGERY SHEFFIELD,25321529,"9,104.17 "
Department of Health,NHS Sheffield CCG,31/12/2018,C&M-GMS Prem Rates,PRC DELEGATED CO-COMMISSIONING,WHITE HOUSE SURGERY SHEFFIELD,25321529,"2,211.00 "
Department of Health,NHS Sheffield CCG,31/12/2018,C&M-GMS Prem Water Rates,PRC DELEGATED CO-COMMISSIONING,WHITE HOUSE SURGERY SHEFFIELD,25321529,216.65 
Department of Health,NHS Sheffield CCG,31/12/2018,C&M-GMS Prof Fees Prescribing,PRC DELEGATED CO-COMMISSIONING,WHITE HOUSE SURGERY SHEFFIELD,25321529,"1,616.53 "
Department of Health,NHS Sheffield CCG,31/12/2018,C&M-GMS QOF Aspiration,PRC DELEGATED CO-COMMISSIONING,WHITE HOUSE SURGERY SHEFFIELD,25321529,"6,017.46 "
Department of Health,NHS Sheffield CCG,31/12/2018,Cont Care-Physical Disab (<65),CHC ADULT FULLY FUNDED,WILLOWBECK HEALTH CARE LTD,25064682,"157,477.28 "
Department of Health,NHS Sheffield CCG,31/12/2018,C&M-PMS Contract Value,PRC DELEGATED CO-COMMISSIONING,WINCOBANK MEDICAL CENTRE,25104522,"62,037.97 "
Department of Health,NHS Sheffield CCG,31/12/2018,C&M-PMS DES Extended Hours Access,PRC DELEGATED CO-COMMISSIONING,WINCOBANK MEDICAL CENTRE,25104522,"3,636.13 "
Department of Health,NHS Sheffield CCG,31/12/2018,C&M-PMS Out of Hours Opt Outs,PRC DELEGATED CO-COMMISSIONING,WINCOBANK MEDICAL CENTRE,25104522,3.43 
Department of Health,NHS Sheffield CCG,31/12/2018,C&M-PMS PCO Seniority,PRC DELEGATED CO-COMMISSIONING,WINCOBANK MEDICAL CENTRE,25104522,"1,997.10 "
Department of Health,NHS Sheffield CCG,31/12/2018,C&M-PMS Prem Healthcentre Rent,PRC DELEGATED CO-COMMISSIONING,WINCOBANK MEDICAL CENTRE,25104522,"44,024.50 "
Department of Health,NHS Sheffield CCG,31/12/2018,C&M-PMS QOF Aspiration,PRC DELEGATED CO-COMMISSIONING,WINCOBANK MEDICAL CENTRE,25104522,"6,309.99 "
Department of Health,NHS Sheffield CCG,31/12/2018,C&M-PMS Contract Value,PRC DELEGATED CO-COMMISSIONING,WOODHOUSE HEALTH CENTRE,25104520,"100,779.71 "
Department of Health,NHS Sheffield CCG,31/12/2018,C&M-PMS DES Extended Hours Access,PRC DELEGATED CO-COMMISSIONING,WOODHOUSE HEALTH CENTRE,25104520,"5,783.60 "
Department of Health,NHS Sheffield CCG,31/12/2018,C&M-PMS DES Learn Dsblty Hlth Chk,PRC DELEGATED CO-COMMISSIONING,WOODHOUSE HEALTH CENTRE,25104520,"1,120.00 "
Department of Health,NHS Sheffield CCG,31/12/2018,C&M-PMS PCO Seniority,PRC DELEGATED CO-COMMISSIONING,WOODHOUSE HEALTH CENTRE,25104520,"6,271.70 "
Department of Health,NHS Sheffield CCG,31/12/2018,C&M-PMS Prem Notional Rent,PRC DELEGATED CO-COMMISSIONING,WOODHOUSE HEALTH CENTRE,25104520,"6,338.58 "
Department of Health,NHS Sheffield CCG,31/12/2018,C&M-PMS QOF Aspiration,PRC DELEGATED CO-COMMISSIONING,WOODHOUSE HEALTH CENTRE,25104520,"13,695.89 "
Department of Health,NHS Sheffield CCG,31/12/2018,C&M-APMS LES Basket of Procedures,LOCAL ENHANCED SERVICES,WOODHOUSE HEALTH CENTRE,25195316,"76,452.00 "
Department of Health,NHS Sheffield CCG,31/12/2018,C&M-PMS Contract Value,PRC DELEGATED CO-COMMISSIONING,WOODSEATS MEDICAL CENTRE,25115993,"74,669.18 "
Department of Health,NHS Sheffield CCG,31/12/2018,C&M-PMS DES Extended Hours Access,PRC DELEGATED CO-COMMISSIONING,WOODSEATS MEDICAL CENTRE,25115993,"4,581.85 "
Department of Health,NHS Sheffield CCG,31/12/2018,C&M-PMS PCO Other,PRC DELEGATED CO-COMMISSIONING,WOODSEATS MEDICAL CENTRE,25115993,661.44 
Department of Health,NHS Sheffield CCG,31/12/2018,C&M-PMS PCO Seniority,PRC DELEGATED CO-COMMISSIONING,WOODSEATS MEDICAL CENTRE,25115993,"1,881.76 "
Department of Health,NHS Sheffield CCG,31/12/2018,C&M-PMS Prem Notional Rent,PRC DELEGATED CO-COMMISSIONING,WOODSEATS MEDICAL CENTRE,25115993,"11,666.67 "
Department of Health,NHS Sheffield CCG,31/12/2018,C&M-PMS Prem Rates,PRC DELEGATED CO-COMMISSIONING,WOODSEATS MEDICAL CENTRE,25115993,"3,032.00 "
Department of Health,NHS Sheffield CCG,31/12/2018,C&M-PMS Prem Water Rates,PRC DELEGATED CO-COMMISSIONING,WOODSEATS MEDICAL CENTRE,25115993,472.64 
Department of Health,NHS Sheffield CCG,31/12/2018,C&M-PMS QOF Aspiration,PRC DELEGATED CO-COMMISSIONING,WOODSEATS MEDICAL CENTRE,25115993,"7,979.47 "
Department of Health,NHS Sheffield CCG,31/12/2018,Hcare Srv Rec NHS Trust-Contract Baseline,AMBULANCE SERVICES,YORKSHIRE AMBULANCE SERVICE NHS TRUST,25024655,"1,509,029.00 "
Department of Health,NHS Sheffield CCG,31/12/2018,Hcare Srv Rec NHS Trust-Contract Baseline,PATIENT TRANSPORT,YORKSHIRE AMBULANCE SERVICE NHS TRUST,25024658,"245,019.60 "
Department of Health,NHS Sheffield CCG,31/12/2018,Hcare Srv Rec NHS Trust-Contract Baseline,NHS 111,YORKSHIRE AMBULANCE SERVICE NHS TRUST,25024662,"114,923.00 "
Department of Health,NHS Sheffield CCG,31/12/2018,Hcare Srv Rec NHS Trust-Contract Baseline,AMBULANCE SERVICES,YORKSHIRE AMBULANCE SERVICE NHS TRUST,25024666,"124,103.00 "
Department of Health,NHS Sheffield CCG,31/12/2018,Hcare Srv Rec NHS Trust-CQUIN,AMBULANCE SERVICES,YORKSHIRE AMBULANCE SERVICE NHS TRUST,25024709,"34,499.00 "
